{"text_format":"1","workbook":"xlsx","n_sheets":8,"sheets":["Лист1","Додатки №1-2 \"Калькулятор\" ","Додаток 21 \"Форма інформування\"","Продукты","Паспорт кредиту","Калькулятор Сайт","Лист2","Лист3"],"not_rendered":{"charts":0,"images":0,"macros":1,"external_links":0,"defined_names":2,"comments":0,"pivot_tables":0},"unopened":[],"bounds":{"document_bytes":16777216,"sheet_cells":100000,"rows_first":2000,"rows_last":500,"rows_between":2000,"halvings":0,"cell_chars":16384,"cell_head_chars":4096},"cells_cut":0,"cells_raw":0,"read":"whole","date_system":"1900"}

{"sheet":"Лист1","index":0,"n_rows":71,"n_cols":7,"rows_kept":71,"cut":false,"hidden":true,"merged":[[0,0,0,1],[1,0,1,1],[2,0,2,1],[14,0,16,5],[18,0,18,1],[18,2,18,3],[25,6,26,6],[42,2,42,6],[43,2,43,6],[29,0,29,2],[29,4,30,6],[30,0,30,2],[31,0,31,1],[24,1,26,1],[24,2,24,3],[25,2,26,2],[25,3,26,3],[25,4,26,4],[24,4,24,6],[19,0,20,1],[19,2,19,3],[20,2,20,3],[21,0,21,3],[23,0,23,5],[50,2,50,6],[52,2,52,6],[53,2,53,6],[54,2,54,6],[55,2,55,6],[51,2,51,6],[44,2,44,6],[32,0,32,1],[33,0,33,1],[35,0,35,1],[36,2,36,6],[37,2,37,6],[38,2,38,6],[39,2,39,6],[40,2,40,6],[41,2,41,6],[45,2,45,6],[46,2,46,6],[47,2,47,6],[48,2,48,6],[49,2,49,6],[57,0,57,6],[58,0,58,6],[59,0,59,6],[61,0,61,6],[56,0,56,6],[69,0,69,6],[62,0,62,1],[62,3,62,5],[70,0,70,6],[63,2,63,5],[64,0,64,6],[65,0,65,6],[66,0,66,1],[66,3,66,5],[67,2,67,5],[68,0,68,1]]}
["Публічне акціонерне товариство \"ТАСКОМБанк\"  "]
["Україна, 01032, м. Київ, вул. С. Петлюри, 30,"]
["безкоштовний телефон: 0 (800) 503 580"]
[null,"Інформація (довідка) про кредит _____________________________:"]
[null,"Розмір кредиту:"]
[null,"Вартість товару (послуги):",null,"грн."]
[null,"Сума на поточні потреби",null,"грн."]
[null,"Сума авансу:",null,"грн."]
[null,"Страховий платiж:",null,"грн."]
[null,"Пенсійний внесок:",null,"грн."]
[null,"Плата за надання кредиту:",null,"грн."]
[null,"Сума договору:",null,"грн."]
[null,"Страхова сума:",null,"грн."]
[]
["Розмір кредиту визначається, як сума вартості товару (послуги) та сума на поточні потреби (за наявності) за мінусом авансового внеску клієнта, а також за рахунок кредиту сплачується страховий платіж  та/або пенсійний внесок та/або плата за надання кредиту. Сума договору і є розміром кредиту, який надається клієнту. Страхова сума це сума, яка є базою для розрахунку страхового платежу. Страхування та сплата пенсійного внеску є окремою послугою, що може надаватись за бажанням клієнта, у тому числі за рахунок кредитних коштів."]
[]
[]
[]
["Internet-banking ТАС 24",null,"-             Сплачуйте за кредитом через Інтернет, а також"]
["https://tas24.ua",null,"-             Поповнюйте депозити"]
[null,null,"-             Здійснюйте платежі"]
["Реєстрація та надання послуг безкоштовні. Детальніше на сайті системи https://tas24.ua"]
[]
["                     Таблиця орієнтовних щомісячних платежів та подорожчання*:"]
["Строк кредиту","Щомісячний платеж, грн","Орієнтовна сукупна вартість кредиту,всього:",null,"в тому числi"]
["(місяців)",null,"у %","у грн.","Сума плати за надання кредиту, грн.","Сума плати за користування кредитом","Сума плати за обслуговування кредитної заборгованості, грн."]
[null,null,null,null,null,"(процентів), грн."]
[]
[]
["Переваги кредитування в рамках даного кредитного продукту:",null,null,null,"Вадами кредитування в рамках даного кредитного продукту є подорожчання товару/послуги"]
["·Оптимізація власного бюджету, за рахунок стабільних платежів"]
["·Моментальне отримання товару"]
["·Низька відсоткова ставка"]
["·Зменшення переплати при достроковому погашенні."]
[]
["Умови кредитування:"]
[null,"Назва кредитного продукту:"]
[null,"Валюта кредиту:","Гривня"]
[null,"Форма кредиту:","Споживчий кредит"]
[null,"Мета кредиту:","Кредит надається: \nбезготівково на оплату товарів чи послуг та оплату супутніх послуг, які пов’язані з отриманням, обслуговуванням і погашенням кредиту, \nна власні потреби готівкою або шляхом перерахування на поточний рахунок позичальника. "]
[null,"Тип процентної ставки","Фіксована/Плаваюча"]
[null,"Плата за користування кредитом (проценти):","______% річних.  \nперші «X» місяців процентна ставка встановлюється на рівні «R»% річних; починаючи з «X1»го місяця користування кредитом процентна ставка встановлюється на рівні «R1»% річних; починаючи з «X2»го місяця користування кредитом процентна ставка встановлюється на рівні «R2»% річних\" \nБанк має право змінювати процентну ставку за кредитом в разі настання події, незалежної від волі сторін Кредитного договору, яка має безпосередній вплив на вартість кредитних ресурсів Банку. В усіх інших випадках процента ставка та вартість супутніх послуг за кредитом змінюється за погодженням між сторонами Кредитного договору згідно з умовами, передбаченими у такому Кредитному договорі."]
[null,"Страховий тариф:","_______ %/ _____ грн. "]
[null,"Cтроки кредитування:","від <Computed Value> до <Computed Value> місяців"]
[null,"Cуми кредитування:","від <Computed Value> до <Computed Value> грн."]
[]
[null,"Форма забезпечення:","Застава товару/інше забезпечення (порука)/кошти на власних рахунках/без забезпечення. Оцінка заставного майна не проводиться"]
[null,"Варіанти повернення (погашення) кредиту:","від <Computed Value> до <Computed Value> місяців"]
[null,"Форма (варіанти) погашення кредиту:","Щомісячно рівними (ануїтетними) платежами.\nАнуїтетні платежі  -  регулярні рівні щомісячні платежі, що направляються на погашення кредиту, а саме основного боргу і процентів, що розраховуються таким чином, що в кінці терміну Кредитного договору за умови виконання зобов'язання Позичальником заборгованість повністю погашається.\nКількість платежів, їх частота та обсяги зазначаються у Графіку платежів згідно Кредитного договору, який в обов’язковому порядку надається для ознайомлення споживачу (позичальнику) до укладання ним Кредитного договору.    \nДаним кредитним продуктом не передбачено інших форм кредитування."]
[null,"Дострокове погашення:","Можливе часткове або повне дострокове погашення кредиту на умовах відсутності штрафних санкцій за вчинення таких дій позичальником"]
[null,"Остаточне погашення:","В кінці строку, вказаного в Кредитному договорі"]
[null,"Податковий режим сплати процентів та державні субсидії","По даному кредитному продукту податкові знижки відсутні, державні субсидії не передбачені"]
[null,"Супутні послуги:"]
[null,"Плата за обслуговування кредитної заборгованості:","_______ щомісячно від суми кредиту\nДана комісія розраховується як процент від суми кредиту, сплачується щомісячно у гривнях у складі ануїтетних платежів. Дана послуга включає в себе розрахунок та надання Позичальнику інформації про стан його заборгованості по кредиту (у вигляді sms-повідомлень, телефонного інформування), інформування про виникнення простроченої заборгованості, формування та надання виписок по рахунку, на якому обліковується кредитна заборгованість, надання консультацій щодо умов строкового та/або дострокового погашення кредитної заборгованості, у тому числі щодо умов дострокового погашення кредитної заборгованості  за декілька періодів, щодо каналів та строків погашення існуючої кредитної заборгованості, зміни умов погашення кредитної заборгованості, встановлення «кредитних канікул», відміни/перегляду розміру штрафних санкцій тощо.\n"]
[null,"Плата за надання кредиту:","___ грн./одноразова комісія, що складає <Computed Value> від суми наданого кредиту. \nДана послуга включає в себе надання послуг з підбору кредитного продукту та умов кредитування, роз’яснення умов кредитування, прийом та аналіз документів, необхідних для оформлення кредиту, консультування щодо умов, каналів, строків погашення кредитної заборгованості, можливості зміни умов погашення кредитної заборгованості тощо."]
[]
["Обов'язкові документи:"]
["1. Паспорт громадянина України"]
["2. Довідка про присвоєння ідентифікаційного номера платника податків (картка платника податків)"]
["В окремих випадках Банк залишає за собою право вимагати інші документи, необхідні для визначення платоспроможності позичальника та які є необхідними для надання споживчого кредиту. "]
[]
["З підписанням цієї Інформації (довідки) про кредит позичальник засвідчує, що перед укладанням Кредитного договору він ознайомлений з інформацією про  умови кредитування, а також повідомлений про орієнтовну сукупну вартість кредиту і ці умови є зрозумілими."]
["_________________________________",null,null,"______________________"]
[null,"Позичальник","Уповноважена особа ПАТ \"ТАСКОМБанк\""]
["Ця Інформація (довідка) про кредит у разі укладання Кредитного договору №____________________ від______________20___р.** вважається (і) його невід’ємною частиною та (іі) детальним розписом сукупної вартості кредиту з урахуванням процентної ставки за ним, вартості супутніх послуг, а також інших фінансових зобов’язань споживача у розумінні"]
["п.3.1. та 3.4. Постанови Правління Національного банку України від 10.05.07р. №168 «Про затвердження Правил надання банками України інформації споживачу про умови кредитування та сукупну вартість кредиту»."]
["_________________________________",null,null,"______________________"]
[null,"Позичальник","Уповноважена особа ПАТ \"ТАСКОМБанк\""]
["_ _ _ _ _ _ _ _ _ _ _ _ _ _ _"]
["*Таблиця орієнтованих щомісячних платежів та подорожчання відображає суму щомісячного погашення кредиту в залежності від вибраного Вами строку кредитування. Таблиця НЕ Є графіком погашення. Графік погашення та чітка сума щомісячного платежу зазначені у Кредитному договорі."]
["**У разі фактичного укладання Кредитного договору його номер та дата вписується уповноваженою особою ПАТ \"ТАСКОМБанк\", на підтвердження чого Позичальник та уповноважена особа ПАТ \"ТАСКОМБанк\" ставлять нижче свої підписи. "]

{"sheet":"Додатки №1-2 \"Калькулятор\" ","index":1,"n_rows":165,"n_cols":34,"rows_kept":165,"cut":false,"hidden":false,"merged":[[30,1,30,5],[5,1,5,3],[3,6,6,8],[25,1,25,8],[26,6,26,8],[27,6,27,8],[19,4,19,9],[15,5,15,9],[18,5,18,9],[17,5,17,9],[13,5,13,9],[26,1,26,5],[27,1,27,5],[0,0,0,18],[1,6,1,8],[33,1,37,1],[33,3,37,3],[33,4,33,16],[3,1,3,3],[6,1,6,3],[9,1,9,3],[4,1,4,3],[20,5,20,9],[33,17,37,17],[33,18,37,18],[32,15,32,18],[35,12,36,15],[14,5,14,9],[1,1,1,4],[32,0,32,14],[11,5,11,9],[10,1,10,9],[164,0,164,18],[33,0,37,0],[33,2,37,2],[34,4,37,4],[34,5,37,5],[34,6,34,16],[35,10,36,11],[35,6,36,9],[28,6,28,8],[29,6,29,8],[30,6,30,8],[28,1,28,5],[29,1,29,5]]}
[]
[null,"КРЕДИТ ФІЗИЧНІЙ ОСОБІ НА КУПІВЛЮ НЕРУХОМОГО МАЙНА НА ВТОРИННОМУ РИНКУ",null,null,null,"кредит","Ануїтетна схема",null,null,null,null,null,null,null,null,null,"Ануїтетна схема"]
[null,"Умови:",null,null,null,null,null,null,null,null,null,null,null,null,null,null,"Класична схема",null,null,null,null,null,null,null,null,null,null,null,null,null,null,null,null,"ЧП \"Актив Плюс\""]
[null,"Дата надання кредиту:  ",null,null,"2023-04-15",null,"Заповніть дані, зазначені червоним кольором",null,null,null,null,null,null,null,null,null,null,null,null,null,null,null,null,null,null,null,null,null,null,null,null,null,"Кредит «Вперед к мечте»","ВАТ \"АКО-Експерт\""]
[null,"Сума фінансування:  ",null,null,1000000,"гривень",null,null,null,null,null,null,null,null,null,null,{"$f":"O5/O4","v":{"$error":"#DIV/0!"}},null,null,null,null,null,null,null,null,null,null,null,null,null,null,null,"Кредит на покупку недвижимости","ПП \"Вітал-Профі\""]
[null,"Вартість майна:  ",null,null,3000000,"гривень"]
[null,"Термін користування кредитом:  ",null,null,48,"міс.",null,null,null,null,null,null,null,null,null,null,{"$f":"O7/O4","v":{"$error":"#DIV/0!"}},null,null,null,null,null,null,null,null,null,null,null,null,null,null,null,"Кредит под залог недвижимости","ВАТ \"Кредитне Брокерське Агенство\""]
[null,null,null,null,null,null,null,null,null,null,null,null,null,null,null,null,null,null,null,null,null,null,null,null,null,null,null,null,null,null,null,null,"Кредит на навчання","ВАТ \"Вектор оцінки\""]
[null,null,null,null,null,null,null,null,null,null,null,null,null,null,null,null,null,null,null,null,null,null,null,null,null,null,null,null,null,null,null,null,"Кредит под депозит","Внутрішній оцінювач Банку"]
[null,"Номінальна процентна ставка: ",null,null,0.24,"річних",null,null,null,null,null,null,null,null,null,null,null,null,null,null,null,null,null,null,null,null,null,null,null,null,null,null,"Кредит на купівлю автомобіля, що був у використанні"]
[null,"Додаткові та/або супутні послуги:",null,null,null,null,null,null,null,null,null,null,null,null,null,null,null,null,null,null,null,null,null,null,null,null,null,null,null,null,null,null,"Овердрафт для держателей зарплатных карт"]
[null,"комісія за надання кредиту: ",null,null,0.01,"від основної суми фінансування;",null,null,null,null,null,null,null,null,{"$f":"E12*E5","v":10000},null,null,null,null,null,null,null,null,null,null,null,null,null,null,null,null,null,"Кредитная карта VIP"]
[null,"обслуговування кредитної заборгованості: ",null,null,0,"на місяць від основної суми фінансування;",null,null,null,null,null,null,null,null,{"$f":"E13*E5","v":0},null,null,null,null,null,null,null,null,null,null,null,null,null,null,null,null,null,"Овердрафт GOLD"]
[null,"розрахунково-касове обслуговування:  ",null,null,0,"від основної суми фінансування;",null,null,null,null,null,null,null,null,{"$f":"$E$14*$O$5","v":0},null,null,null,null,null,null,null,null,null,null,null,null,null,null,null,null,null,"Кеш-кредит \"Зручна готівка\" із послугою страхування"]
[null,"інші послуги банку:",null,null,0,"від основної суми фінансування;",null,null,null,null,null,null,null,null,{"$f":"E15*E5","v":0}]
[null,"страхування:",null,null,0,"на рік від основної суми фінансування (життя);",null,null,null,null,null,null,null,null,{"$f":"E16*E5","v":0},null,null,null,null,null,null,null,null,null,null,null,null,null,null,null,null,null,"Кеш-кредит \"Зручна готівка\" без послуги страхування"]
[null,null,null,null,3.0000000000000001E-3,"на рік від оціночної вартості майна (страхування майна);",null,null,null,null,null,null,null,null,{"$f":"E17*E6","v":9000},null,null,null,null,null,null,null,null,null,null,null,null,null,null,null,null,null,"Лізинг нерухомості"]
[null,"послуги посередника:",null,null,0,"сума, грн (одноразово);",null,null,null,null,null,null,null,null,null,null,null,null,null,null,null,null,null,null,null,null,null,null,null,null,null,null,"Кредит \"Легкий\""]
[null,"послуги нотаріуса: ",null,null,12500,"сума, грн (одноразово);",null,null,null,null,null,null,null,null,null,null,null,null,null,null,null,null,null,null,null,null,null,null,null,null,null,null,"Кредит \"Автосалон\""]
[null,"Найменування оцінника:"]
[null,"вартість послуг оцінника:",null,null,3000,"сума, грн (одноразово).",null,null,null,null,null,null,null,null,null,null,null,null,null,null,null,null,null,null,null,null,null,null,null,null,null,null,"кредит"]
[null,"Інші послуги третіх осіб:"]
[null,"збір на обов'язкове державне пенсійне страхування",null,null,{"$f":"E6*1%","v":30000},"сума, грн (одноразово);"]
[null,"адміністративні збори",null,null,300,"сума, грн (одноразово)"]
[]
[null,"Орієнтовні розрахункові параметри:"]
[null,"Загальна сума кредиту:",null,null,null,null,{"$f":"E5","v":1000000}]
[null,"Початковий внесок клієнта:",null,null,null,null,{"$f":"E6-E5","v":2000000}]
[null,"Орієнтовна загальна вартість кредиту:",null,null,null,null,{"$f":"S161","v":1665688.1062687724}]
[null,"Орієнтовні загальні витрати за кредитом:",null,null,null,null,{"$f":"G29-G27","v":665688.10626877239}]
[null,"Орієнтовна реальна річна процентна ставка:",null,null,null,null,{"$f":"R161","v":0.33615334630012517}]
[]
["Таблиця обчислення загальної вартості кредиту для споживача та реальної річної процентної ставки за договором про споживчий кредит ",null,null,null,null,null,null,null,null,null,null,null,null,null,null,{"$f":"G2","v":"Ануїтетна схема"},null,null,null,null,null,null,null,null,null,null,null,null,null,null,null,null,"кредитна лінія"]
["№ з/п","Дата видачі кредиту/дата платежу","Кількість днів у розрахунковому періоді","Чиста сума кредиту/сума платежу за розрахунковий період,грн","Види платежів за кредитом",null,null,null,null,null,null,null,null,null,null,null,null,"Реальна річна процентна ставка, %","Загальна вартість кредиту, грн.",null,null,null,null,null,null,null,null,null,null,null,null,null,"овердрафт"]
[null,null,null,null,"Сума кредиту за договором","Поценти за користування кредитом","платежі за додаткові та/або супутні послуги",null,null,null,null,null,null,null,null,null,null,null,null,null,null,null,null,null,null,null,null,null,null,null,null,null,"лізинг"]
[null,null,null,null,null,null,"банку",null,null,null,"кредитного посередника (за наявності)",null,"третіх осіб"]
[]
[null,null,null,null,null,null,"за обслуговування кредитної заборгова ності","розрахунково-касове обслугову -вання","комісія за надання кредиту","інші послуги банку","комісійний збір","інша плата за послуги кредитного посередника","послуги нотаріуса","послуги оцінювача","послуги страховика","інші послуги третіх осіб (збір на обов'язкове держ. пенс. страхув. + адміністрат. збори) "]
[1,2,3,4,5,6,"7","8","9","10","11","12","13","14","15","16","6.3",17,18]
[null,{"$f":"E4","v":"2023-04-15"},"х",{"$f":"E40+SUM(G40:P40)","v":-935200},{"$f":"E5*(-1)","v":-1000000},null,null,{"$f":"O14","v":0},{"$f":"E5*E12","v":10000},{"$f":"O15","v":0},{"$f":"E18","v":0},null,{"$f":"E19","v":12500},{"$f":"E21","v":3000},{"$f":"$O$17+E5*$E$16","v":9000},{"$f":"E24+E23","v":30300},null,"х","х"]
[1,{"$f":"DATE(YEAR(B40),MONTH(B40)+1,DAY(B40))","v":"2023-05-15"},{"$f":"B41-B40","v":30},{"$f":"SUM(E41:Q41)","v":32601.835547266091},{"$f":"IF(A41>$E$7,0,PPMT($E$10/12,A41,$E$7,$E$40))","v":12601.835547266093},{"$f":"IF(A41>$E$7,0,IPMT($E$10/12,A41,$E$7,$E$40))","v":20000},{"$f":"IF(A41>$E$7,0,$E$5*$E$13)","v":0},null,null,null,null,null,null,{"$f":"IF(A41=$E$7,\"\",IF(AND(U41>1,V41=0),$E$21,\" \"))","v":" "},{"$f":"IF(A41=$E$7,\"\",IF(AND(U41>1,V41=0),$O$17+U41*$E$16,\" \"))","v":" "},null,null,"х","х",null,{"$f":"E5","v":1000000},{"$f":"MOD(A41,12)","v":1}]
[2,{"$f":"DATE(YEAR(B41),MONTH(B41)+1,DAY(B41))","v":"2023-06-15"},{"$f":"B42-B41","v":31},{"$f":"SUM(E42:Q42)","v":32601.835547266088},12853.872258211413,19747.963289054675,0,null,null,null,null,null,null,{"$f":"IF(A42=$E$7,\"\",IF(AND(U42>1,V42=0),$E$21,\" \"))","v":" "},{"$f":"IF(A42=$E$7,\"\",IF(AND(U42>1,V42=0),$O$17+U42*$E$16,\" \"))","v":" "},null,null,"х","х",null,{"$f":"U41-E41","v":987398.16445273394},2]
[3,"2023-07-15",30,32601.835547266091,13110.949703375643,19490.885843890446,0,null,null,null,null,null,null," "," ",null,null,"х","х",null,974544.29219452257,3]
[4,"2023-08-15",31,32601.835547266091,13373.168697443156,19228.666849822937,0,null,null,null,null,null,null," "," ",null,null,"х","х",null,961433.34249114688,4]
[5,"2023-09-15",31,32601.835547266091,13640.632071392019,18961.20347587407,0,null,null,null,null,null,null," "," ",null,null,"х","х",null,948060.17379370367,5]
[6,"2023-10-15",30,32601.835547266091,13913.444712819861,18688.390834446229,0,null,null,null,null,null,null," "," ",null,null,"х","х",null,934419.54172231164,6]
[7,"2023-11-15",31,32601.835547266091,14191.713607076257,18410.121940189834,0,null,null,null,null,null,null," "," ",null,null,"х","х",null,920506.09700949176,7]
[8,"2023-12-15",30,32601.835547266091,14475.547879217782,18126.28766804831,0,null,null,null,null,null,null," "," ",null,null,"х","х",null,906314.38340241555,8]
[9,"2024-01-15",31,32601.835547266088,14765.058836802138,17836.77671046395,0,null,null,null,null,null,null," "," ",null,null,"х","х",null,891838.83552319778,9]
[10,"2024-02-15",31,32601.835547266091,15060.360013538178,17541.475533727913,0,null,null,null,null,null,null," "," ",null,null,"х","х",null,877073.77668639563,10]
[11,"2024-03-15",29,32601.835547266088,15361.567213808943,17240.268333457145,0,null,null,null,null,null,null," "," ",null,null,"х","х",null,862013.41667285748,11]
[12,"2024-04-15",31,{"$f":"SUM(E52:Q52)","v":44601.835547266091},15668.798558085122,16933.036989180971,0,null,null,null,null,null,null,3000,9000,null,null,"х","х",null,846651.84945904859,0]
[13,"2024-05-15",30,32601.835547266091,15982.174529246824,16619.661018019269,0,null,null,null,null,null,null," "," ",null,null,"х","х",null,830983.05090096348,1]
[14,"2024-06-15",31,32601.835547266091,16301.81801983176,16300.017527434333,0,null,null,null,null,null,null," "," ",null,null,"х","х",null,815000.87637171661,2]
[15,"2024-07-15",30,32601.835547266088,16627.854380228393,15973.981167037695,0,null,null,null,null,null,null," "," ",null,null,"х","х",null,798699.05835188483,3]
[16,"2024-08-15",31,32601.835547266091,16960.411467832964,15641.424079433127,0,null,null,null,null,null,null," "," ",null,null,"х","х",null,782071.20397165639,4]
[17,"2024-09-15",31,32601.835547266091,17299.619697189624,15302.215850076469,0,null,null,null,null,null,null," "," ",null,null,"х","х",null,765110.79250382341,5]
[18,"2024-10-15",30,32601.835547266091,17645.612091133415,14956.223456132675,0,null,null,null,null,null,null," "," ",null,null,"х","х",null,747811.17280663375,6]
[19,"2024-11-15",31,32601.835547266095,17998.524332956087,14603.311214310008,0,null,null,null,null,null,null," "," ",null,null,"х","х",null,730165.56071550038,7]
[20,"2024-12-15",30,32601.835547266091,18358.494819615207,14243.340727650886,0,null,null,null,null,null,null," "," ",null,null,"х","х",null,712167.03638254432,8]
[21,"2025-01-15",31,32601.835547266095,18725.664716007512,13876.170831258583,0,null,null,null,null,null,null," "," ",null,null,"х","х",null,693808.54156292917,9]
[22,"2025-02-15",31,32601.835547266091,19100.178010327661,13501.65753693843,0,null,null,null,null,null,null," "," ",null,null,"х","х",null,675082.87684692163,10]
[23,"2025-03-15",28,32601.835547266091,19482.181570534212,13119.653976731877,0,null,null,null,null,null,null," "," ",null,null,"х","х",null,655982.69883659401,11]
[24,"2025-04-15",31,44601.835547266091,19871.825201944896,12730.010345321192,0,null,null,null,null,null,null,3000,9000,null,null,"х","х",null,636500.51726605976,0]
[25,"2025-05-15",30,32601.835547266091,20269.261705983794,12332.573841282298,0,null,null,null,null,null,null," "," ",null,null,"х","х",null,616628.69206411485,1]
[26,"2025-06-15",31,32601.835547266088,20674.64694010347,11927.188607162618,0,null,null,null,null,null,null," "," ",null,null,"х","х",null,596359.43035813107,2]
[27,"2025-07-15",30,32601.835547266091,21088.139878905542,11513.695668360549,0,null,null,null,null,null,null," "," ",null,null,"х","х",null,575684.78341802757,3]
[28,"2025-08-15",31,32601.835547266088,21509.902676483649,11091.932870782439,0,null,null,null,null,null,null," "," ",null,null,"х","х",null,554596.64353912207,4]
[29,"2025-09-15",31,32601.835547266091,21940.100730013328,10661.734817252765,0,null,null,null,null,null,null," "," ",null,null,"х","х",null,533086.74086263846,5]
[30,"2025-10-15",30,32601.835547266091,22378.902744613591,10222.932802652498,0,null,null,null,null,null,null," "," ",null,null,"х","х",null,511146.64013262512,6]
[31,"2025-11-15",31,32601.835547266091,22826.480799505862,9775.3547477602278,0,null,null,null,null,null,null," "," ",null,null,"х","х",null,488767.73738801153,7]
[32,"2025-12-15",30,32601.835547266091,23283.010415495981,9318.8251317701088,0,null,null,null,null,null,null," "," ",null,null,"х","х",null,465941.2565885057,8]
[33,"2026-01-15",31,{"$f":"SUM(E73:Q73)","v":32601.835547266091},{"$f":"IF(A73>$E$7,0,PPMT($E$10/12,A73,$E$7,$E$40))","v":23748.670623805901},{"$f":"IF(A73>$E$7,0,IPMT($E$10/12,A73,$E$7,$E$40))","v":8853.1649234601919},{"$f":"IF(A73>$E$7,0,$E$5*$E$13)","v":0},null,null,null,null,null,null," "," ",null,null,"х","х",null,442658.24617300974,{"$f":"MOD(A73,12)","v":9}]
[34,"2026-02-15",31,32601.835547266091,24223.644036282018,8378.1915109840738,0,null,null,null,null,null,null," "," ",null,null,"х","х",null,{"$f":"U73-E73","v":418909.57554920384},10]
[35,"2026-03-15",28,32601.835547266091,24708.116917007661,7893.7186302584314,0,null,null,null,null,null,null," "," ",null,null,"х","х",null,394685.93151292182,11]
[36,"2026-04-15",31,44601.835547266091,25202.27925534781,7399.5562919182794,0,null,null,null,null,null,null,3000,9000,null,null,"х","х",null,369977.81459591415,0]
[37,"2026-05-15",30,32601.835547266091,25706.324840454767,6895.5107068113239,0,null,null,null,null,null,null," "," ",null,null,"х","х",null,344775.53534056636,1]
[38,"2026-06-15",31,32601.835547266091,26220.451337263865,6381.3842100022284,0,null,null,null,null,null,null," "," ",null,null,"х","х",null,319069.21050011157,2]
[39,"2026-07-15",30,32601.835547266091,26744.860364009142,5856.9751832569509,0,null,null,null,null,null,null," "," ",null,null,"х","х",null,292848.75916284771,3]
[40,"2026-08-15",31,32601.835547266088,27279.757571289319,5322.0779759767674,0,null,null,null,null,null,null," "," ",null,null,"х","х",null,266103.89879883855,4]
[41,"2026-09-15",31,32601.835547266088,27825.352722715106,4776.4828245509816,0,null,null,null,null,null,null," "," ",null,null,"х","х",null,238824.14122754923,5]
[42,"2026-10-15",30,32601.835547266091,28381.859777169411,4219.9757700966793,0,null,null,null,null,null,null," "," ",null,null,"х","х",null,210998.78850483411,6]
[43,"2026-11-15",31,32601.835547266091,28949.496972712801,3652.338574553291,0,null,null,null,null,null,null," "," ",null,null,"х","х",null,182616.92872766469,7]
[44,"2026-12-15",30,32601.835547266095,29528.48691216706,3073.3486350990343,0,null,null,null,null,null,null," "," ",null,null,"х","х",null,153667.43175495189,8]
[45,"2027-01-15",31,32601.835547266091,30119.056650410399,2482.7788968556938,0,null,null,null,null,null,null," "," ",null,null,"х","х",null,124138.94484278483,9]
[46,"2027-02-15",31,32601.835547266091,30721.437783418605,1880.3977638474862,0,null,null,null,null,null,null," "," ",null,null,"х","х",null,94019.888192374434,10]
[47,"2027-03-15",28,32601.835547266091,31335.866539086979,1265.9690081791139,0,null,null,null,null,null,null," "," ",null,null,"х","х",null,63298.450408955832,11]
[48,"2027-04-15",31,32601.835547266088,31962.583869868715,639.25167739737435,0,null,null,null,null,null,null,"","",null,null,"х","х",null,31962.583869868853,0]
[49,"2027-05-15",30,0,0,0,0,null,null,null,null,null,null," "," ",null,null,"х","х",null,1.3824319466948509E-10,1]
[50,"2027-06-15",31,0,0,0,0,null,null,null,null,null,null," "," ",null,null,"х","х",null,1.3824319466948509E-10,2]
[51,"2027-07-15",30,0,0,0,0,null,null,null,null,null,null," "," ",null,null,"х","х",null,1.3824319466948509E-10,3]
[52,"2027-08-15",31,0,0,0,0,null,null,null,null,null,null," "," ",null,null,"х","х",null,1.3824319466948509E-10,4]
[53,"2027-09-15",31,0,0,0,0,null,null,null,null,null,null," "," ",null,null,"х","х",null,1.3824319466948509E-10,5]
[54,"2027-10-15",30,0,0,0,0,null,null,null,null,null,null," "," ",null,null,"х","х",null,1.3824319466948509E-10,6]
[55,"2027-11-15",31,0,0,0,0,null,null,null,null,null,null," "," ",null,null,"х","х",null,1.3824319466948509E-10,7]
[56,"2027-12-15",30,0,0,0,0,null,null,null,null,null,null," "," ",null,null,"х","х",null,1.3824319466948509E-10,8]
[57,"2028-01-15",31,0,0,0,0,null,null,null,null,null,null," "," ",null,null,"х","х",null,1.3824319466948509E-10,9]
[58,"2028-02-15",31,0,0,0,0,null,null,null,null,null,null," "," ",null,null,"х","х",null,1.3824319466948509E-10,10]
[59,"2028-03-15",29,0,0,0,0,null,null,null,null,null,null," "," ",null,null,"х","х",null,1.3824319466948509E-10,11]
[60,"2028-04-15",31,0,0,0,0,null,null,null,null,null,null," "," ",null,null,"х","х",null,1.3824319466948509E-10,0]
[61,{"$f":"DATE(YEAR(B100),MONTH(B100)+1,1)","v":"2028-05-01"},16,0,{"$f":"IF(A101>$E$7,0,IF($R$2=2,PPMT($E$10/12,A101,$E$7,$E$40),$E$5/$E$7))","v":0},{"$f":"IF(A101>$E$7,0,IF($R$2=2,IPMT($E$10/12,A101,$E$7,$E$40),((($E$5-SUM($E$41:E100))*$E$10/12))))","v":0},0,null,null,null,null,null,null,null," ",null,null,"х","х",null,1.3824319466948509E-10,1]
[62,"2028-06-01",31,0,0,{"$f":"IF(A102>$E$7,0,IF($R$2=2,IPMT($E$10/12,A102,$E$7,$E$40),((($E$5-SUM($E$41:E101))*$E$10/12))))","v":0},0,null,null,null,null,null,null,null," ",null,null,"х","х",null,1.3824319466948509E-10,2]
[63,"2028-07-01",30,0,0,{"$f":"IF(A103>$E$7,0,IF($R$2=2,IPMT($E$10/12,A103,$E$7,$E$40),((($E$5-SUM($E$41:E102))*$E$10/12))))","v":0},0,null,null,null,null,null,null,null," ",null,null,"х","х",null,1.3824319466948509E-10,3]
[64,"2028-08-01",31,0,0,{"$f":"IF(A104>$E$7,0,IF($R$2=2,IPMT($E$10/12,A104,$E$7,$E$40),((($E$5-SUM($E$41:E103))*$E$10/12))))","v":0},0,null,null,null,null,null,null,null," ",null,null,"х","х",null,1.3824319466948509E-10,4]
[65,"2028-09-01",31,{"$f":"SUM(E105:Q105)","v":0},0,{"$f":"IF(A105>$E$7,0,IF($R$2=2,IPMT($E$10/12,A105,$E$7,$E$40),((($E$5-SUM($E$41:E104))*$E$10/12))))","v":0},{"$f":"IF(A105>$E$7,0,$E$5*$E$13)","v":0},null,null,null,null,null,null,null,{"$f":"IF(A105=$E$7,\"\",IF(AND(U105>1,V105=0),$O$17+U105*$E$16,\" \"))","v":" "},null,null,"х","х",null,1.3824319466948509E-10,{"$f":"MOD(A105,12)","v":5}]
[66,{"$f":"DATE(YEAR(B105),MONTH(B105)+1,1)","v":"2028-10-01"},{"$f":"B106-B105","v":30},0,0,{"$f":"IF(A106>$E$7,0,IF($R$2=2,IPMT($E$10/12,A106,$E$7,$E$40),((($E$5-SUM($E$41:E105))*$E$10/12))))","v":0},0,null,null,null,null,null,null,null," ",null,null,"х","х",null,{"$f":"U105-E105","v":1.3824319466948509E-10},6]
[67,"2028-11-01",31,0,0,{"$f":"IF(A107>$E$7,0,IF($R$2=2,IPMT($E$10/12,A107,$E$7,$E$40),((($E$5-SUM($E$41:E106))*$E$10/12))))","v":0},0,null,null,null,null,null,null,null," ",null,null,"х","х",null,1.3824319466948509E-10,7]
[68,"2028-12-01",30,0,0,{"$f":"IF(A108>$E$7,0,IF($R$2=2,IPMT($E$10/12,A108,$E$7,$E$40),((($E$5-SUM($E$41:E107))*$E$10/12))))","v":0},0,null,null,null,null,null,null,null," ",null,null,"х","х",null,1.3824319466948509E-10,8]
[69,"2029-01-01",31,0,0,{"$f":"IF(A109>$E$7,0,IF($R$2=2,IPMT($E$10/12,A109,$E$7,$E$40),((($E$5-SUM($E$41:E108))*$E$10/12))))","v":0},0,null,null,null,null,null,null,null," ",null,null,"х","х",null,1.3824319466948509E-10,9]
[70,"2029-02-01",31,0,0,{"$f":"IF(A110>$E$7,0,IF($R$2=2,IPMT($E$10/12,A110,$E$7,$E$40),((($E$5-SUM($E$41:E109))*$E$10/12))))","v":0},0,null,null,null,null,null,null,null," ",null,null,"х","х",null,1.3824319466948509E-10,10]
[71,"2029-03-01",28,0,0,{"$f":"IF(A111>$E$7,0,IF($R$2=2,IPMT($E$10/12,A111,$E$7,$E$40),((($E$5-SUM($E$41:E110))*$E$10/12))))","v":0},0,null,null,null,null,null,null,null," ",null,null,"х","х",null,1.3824319466948509E-10,11]
[72,"2029-04-01",31,0,0,{"$f":"IF(A112>$E$7,0,IF($R$2=2,IPMT($E$10/12,A112,$E$7,$E$40),((($E$5-SUM($E$41:E111))*$E$10/12))))","v":0},0,null,null,null,null,null,null,null," ",null,null,"х","х",null,1.3824319466948509E-10,0]
[73,"2029-05-01",30,0,0,{"$f":"IF(A113>$E$7,0,IF($R$2=2,IPMT($E$10/12,A113,$E$7,$E$40),((($E$5-SUM($E$41:E112))*$E$10/12))))","v":0},0,null,null,null,null,null,null,null," ",null,null,"х","х",null,1.3824319466948509E-10,1]
[74,"2029-06-01",31,0,0,{"$f":"IF(A114>$E$7,0,IF($R$2=2,IPMT($E$10/12,A114,$E$7,$E$40),((($E$5-SUM($E$41:E113))*$E$10/12))))","v":0},0,null,null,null,null,null,null,null," ",null,null,"х","х",null,1.3824319466948509E-10,2]
[75,"2029-07-01",30,0,0,{"$f":"IF(A115>$E$7,0,IF($R$2=2,IPMT($E$10/12,A115,$E$7,$E$40),((($E$5-SUM($E$41:E114))*$E$10/12))))","v":0},0,null,null,null,null,null,null,null," ",null,null,"х","х",null,1.3824319466948509E-10,3]
[76,"2029-08-01",31,0,0,{"$f":"IF(A116>$E$7,0,IF($R$2=2,IPMT($E$10/12,A116,$E$7,$E$40),((($E$5-SUM($E$41:E115))*$E$10/12))))","v":0},0,null,null,null,null,null,null,null," ",null,null,"х","х",null,1.3824319466948509E-10,4]
[77,"2029-09-01",31,0,0,{"$f":"IF(A117>$E$7,0,IF($R$2=2,IPMT($E$10/12,A117,$E$7,$E$40),((($E$5-SUM($E$41:E116))*$E$10/12))))","v":0},0,null,null,null,null,null,null,null," ",null,null,"х","х",null,1.3824319466948509E-10,5]
[78,"2029-10-01",30,0,0,{"$f":"IF(A118>$E$7,0,IF($R$2=2,IPMT($E$10/12,A118,$E$7,$E$40),((($E$5-SUM($E$41:E117))*$E$10/12))))","v":0},0,null,null,null,null,null,null,null," ",null,null,"х","х",null,1.3824319466948509E-10,6]
[79,"2029-11-01",31,0,0,{"$f":"IF(A119>$E$7,0,IF($R$2=2,IPMT($E$10/12,A119,$E$7,$E$40),((($E$5-SUM($E$41:E118))*$E$10/12))))","v":0},0,null,null,null,null,null,null,null," ",null,null,"х","х",null,1.3824319466948509E-10,7]
[80,"2029-12-01",30,0,0,{"$f":"IF(A120>$E$7,0,IF($R$2=2,IPMT($E$10/12,A120,$E$7,$E$40),((($E$5-SUM($E$41:E119))*$E$10/12))))","v":0},0,null,null,null,null,null,null,null," ",null,null,"х","х",null,1.3824319466948509E-10,8]
[81,"2030-01-01",31,0,0,{"$f":"IF(A121>$E$7,0,IF($R$2=2,IPMT($E$10/12,A121,$E$7,$E$40),((($E$5-SUM($E$41:E120))*$E$10/12))))","v":0},0,null,null,null,null,null,null,null," ",null,null,"х","х",null,1.3824319466948509E-10,9]
[82,"2030-02-01",31,0,0,{"$f":"IF(A122>$E$7,0,IF($R$2=2,IPMT($E$10/12,A122,$E$7,$E$40),((($E$5-SUM($E$41:E121))*$E$10/12))))","v":0},0,null,null,null,null,null,null,null," ",null,null,"х","х",null,1.3824319466948509E-10,10]
[83,"2030-03-01",28,0,0,{"$f":"IF(A123>$E$7,0,IF($R$2=2,IPMT($E$10/12,A123,$E$7,$E$40),((($E$5-SUM($E$41:E122))*$E$10/12))))","v":0},0,null,null,null,null,null,null,null," ",null,null,"х","х",null,1.3824319466948509E-10,11]
[84,"2030-04-01",31,0,0,{"$f":"IF(A124>$E$7,0,IF($R$2=2,IPMT($E$10/12,A124,$E$7,$E$40),((($E$5-SUM($E$41:E123))*$E$10/12))))","v":0},0,null,null,null,null,null,null,null," ",null,null,"х","х",null,1.3824319466948509E-10,0]
[85,"2030-05-01",30,0,0,{"$f":"IF(A125>$E$7,0,IF($R$2=2,IPMT($E$10/12,A125,$E$7,$E$40),((($E$5-SUM($E$41:E124))*$E$10/12))))","v":0},0,null,null,null,null,null,null,null," ",null,null,"х","х",null,1.3824319466948509E-10,1]
[86,"2030-06-01",31,0,0,{"$f":"IF(A126>$E$7,0,IF($R$2=2,IPMT($E$10/12,A126,$E$7,$E$40),((($E$5-SUM($E$41:E125))*$E$10/12))))","v":0},0,null,null,null,null,null,null,null," ",null,null,"х","х",null,1.3824319466948509E-10,2]
[87,"2030-07-01",30,0,0,{"$f":"IF(A127>$E$7,0,IF($R$2=2,IPMT($E$10/12,A127,$E$7,$E$40),((($E$5-SUM($E$41:E126))*$E$10/12))))","v":0},0,null,null,null,null,null,null,null," ",null,null,"х","х",null,1.3824319466948509E-10,3]
[88,"2030-08-01",31,0,0,{"$f":"IF(A128>$E$7,0,IF($R$2=2,IPMT($E$10/12,A128,$E$7,$E$40),((($E$5-SUM($E$41:E127))*$E$10/12))))","v":0},0,null,null,null,null,null,null,null," ",null,null,"х","х",null,1.3824319466948509E-10,4]
[89,"2030-09-01",31,0,0,{"$f":"IF(A129>$E$7,0,IF($R$2=2,IPMT($E$10/12,A129,$E$7,$E$40),((($E$5-SUM($E$41:E128))*$E$10/12))))","v":0},0,null,null,null,null,null,null,null," ",null,null,"х","х",null,1.3824319466948509E-10,5]
[90,"2030-10-01",30,0,0,{"$f":"IF(A130>$E$7,0,IF($R$2=2,IPMT($E$10/12,A130,$E$7,$E$40),((($E$5-SUM($E$41:E129))*$E$10/12))))","v":0},0,null,null,null,null,null,null,null," ",null,null,"х","х",null,1.3824319466948509E-10,6]
[91,"2030-11-01",31,0,0,{"$f":"IF(A131>$E$7,0,IF($R$2=2,IPMT($E$10/12,A131,$E$7,$E$40),((($E$5-SUM($E$41:E130))*$E$10/12))))","v":0},0,null,null,null,null,null,null,null," ",null,null,"х","х",null,1.3824319466948509E-10,7]
[92,"2030-12-01",30,0,0,{"$f":"IF(A132>$E$7,0,IF($R$2=2,IPMT($E$10/12,A132,$E$7,$E$40),((($E$5-SUM($E$41:E131))*$E$10/12))))","v":0},0,null,null,null,null,null,null,null," ",null,null,"х","х",null,1.3824319466948509E-10,8]
[93,"2031-01-01",31,0,{"$f":"IF(A133>$E$7,0,IF($R$2=2,PPMT($E$10/12,A133,$E$7,$E$40),$E$5/$E$7))","v":0},{"$f":"IF(A133>$E$7,0,IF($R$2=2,IPMT($E$10/12,A133,$E$7,$E$40),((($E$5-SUM($E$41:E132))*$E$10/12))))","v":0},0,null,null,null,null,null,null,null," ",null,null,"х","х",null,1.3824319466948509E-10,9]
[94,"2031-02-01",31,0,0,{"$f":"IF(A134>$E$7,0,IF($R$2=2,IPMT($E$10/12,A134,$E$7,$E$40),((($E$5-SUM($E$41:E133))*$E$10/12))))","v":0},0,null,null,null,null,null,null,null," ",null,null,"х","х",null,1.3824319466948509E-10,10]
[95,"2031-03-01",28,0,0,{"$f":"IF(A135>$E$7,0,IF($R$2=2,IPMT($E$10/12,A135,$E$7,$E$40),((($E$5-SUM($E$41:E134))*$E$10/12))))","v":0},0,null,null,null,null,null,null,null," ",null,null,"х","х",null,1.3824319466948509E-10,11]
[96,"2031-04-01",31,0,0,{"$f":"IF(A136>$E$7,0,IF($R$2=2,IPMT($E$10/12,A136,$E$7,$E$40),((($E$5-SUM($E$41:E135))*$E$10/12))))","v":0},0,null,null,null,null,null,null,null," ",null,null,"х","х",null,1.3824319466948509E-10,0]
[97,"2031-05-01",30,{"$f":"SUM(E137:Q137)","v":0},0,{"$f":"IF(A137>$E$7,0,IF($R$2=2,IPMT($E$10/12,A137,$E$7,$E$40),((($E$5-SUM($E$41:E136))*$E$10/12))))","v":0},{"$f":"IF(A137>$E$7,0,$E$5*$E$13)","v":0},null,null,null,null,null,null,null," ",null,null,"х","х",null,1.3824319466948509E-10,{"$f":"MOD(A137,12)","v":1}]
[98,"2031-06-01",31,0,0,{"$f":"IF(A138>$E$7,0,IF($R$2=2,IPMT($E$10/12,A138,$E$7,$E$40),((($E$5-SUM($E$41:E137))*$E$10/12))))","v":0},0,null,null,null,null,null,null,null," ",null,null,"х","х",null,{"$f":"U137-E137","v":1.3824319466948509E-10},2]
[99,"2031-07-01",30,0,0,{"$f":"IF(A139>$E$7,0,IF($R$2=2,IPMT($E$10/12,A139,$E$7,$E$40),((($E$5-SUM($E$41:E138))*$E$10/12))))","v":0},0,null,null,null,null,null,null,null," ",null,null,"х","х",null,1.3824319466948509E-10,3]
[100,"2031-08-01",31,0,0,{"$f":"IF(A140>$E$7,0,IF($R$2=2,IPMT($E$10/12,A140,$E$7,$E$40),((($E$5-SUM($E$41:E139))*$E$10/12))))","v":0},0,null,null,null,null,null,null,null," ",null,null,"х","х",null,1.3824319466948509E-10,4]
[101,"2031-09-01",31,0,0,{"$f":"IF(A141>$E$7,0,IF($R$2=2,IPMT($E$10/12,A141,$E$7,$E$40),((($E$5-SUM($E$41:E140))*$E$10/12))))","v":0},0,null,null,null,null,null,null,null," ",null,null,"х","х",null,1.3824319466948509E-10,5]
[102,"2031-10-01",30,0,0,{"$f":"IF(A142>$E$7,0,IF($R$2=2,IPMT($E$10/12,A142,$E$7,$E$40),((($E$5-SUM($E$41:E141))*$E$10/12))))","v":0},0,null,null,null,null,null,null,null," ",null,null,"х","х",null,1.3824319466948509E-10,6]
[103,"2031-11-01",31,0,0,{"$f":"IF(A143>$E$7,0,IF($R$2=2,IPMT($E$10/12,A143,$E$7,$E$40),((($E$5-SUM($E$41:E142))*$E$10/12))))","v":0},0,null,null,null,null,null,null,null," ",null,null,"х","х",null,1.3824319466948509E-10,7]
[104,"2031-12-01",30,0,0,{"$f":"IF(A144>$E$7,0,IF($R$2=2,IPMT($E$10/12,A144,$E$7,$E$40),((($E$5-SUM($E$41:E143))*$E$10/12))))","v":0},0,null,null,null,null,null,null,null," ",null,null,"х","х",null,1.3824319466948509E-10,8]
[105,"2032-01-01",31,0,0,{"$f":"IF(A145>$E$7,0,IF($R$2=2,IPMT($E$10/12,A145,$E$7,$E$40),((($E$5-SUM($E$41:E144))*$E$10/12))))","v":0},0,null,null,null,null,null,null,null," ",null,null,"х","х",null,1.3824319466948509E-10,9]
[106,"2032-02-01",31,0,0,{"$f":"IF(A146>$E$7,0,IF($R$2=2,IPMT($E$10/12,A146,$E$7,$E$40),((($E$5-SUM($E$41:E145))*$E$10/12))))","v":0},0,null,null,null,null,null,null,null," ",null,null,"х","х",null,1.3824319466948509E-10,10]
[107,"2032-03-01",29,0,0,{"$f":"IF(A147>$E$7,0,IF($R$2=2,IPMT($E$10/12,A147,$E$7,$E$40),((($E$5-SUM($E$41:E146))*$E$10/12))))","v":0},0,null,null,null,null,null,null,null," ",null,null,"х","х",null,1.3824319466948509E-10,11]
[108,"2032-04-01",31,0,0,{"$f":"IF(A148>$E$7,0,IF($R$2=2,IPMT($E$10/12,A148,$E$7,$E$40),((($E$5-SUM($E$41:E147))*$E$10/12))))","v":0},0,null,null,null,null,null,null,null," ",null,null,"х","х",null,1.3824319466948509E-10,0]
[109,"2032-05-01",30,0,0,{"$f":"IF(A149>$E$7,0,IF($R$2=2,IPMT($E$10/12,A149,$E$7,$E$40),((($E$5-SUM($E$41:E148))*$E$10/12))))","v":0},0,null,null,null,null,null,null,null," ",null,null,"х","х",null,1.3824319466948509E-10,1]
[110,"2032-06-01",31,0,0,{"$f":"IF(A150>$E$7,0,IF($R$2=2,IPMT($E$10/12,A150,$E$7,$E$40),((($E$5-SUM($E$41:E149))*$E$10/12))))","v":0},0,null,null,null,null,null,null,null," ",null,null,"х","х",null,1.3824319466948509E-10,2]
[111,"2032-07-01",30,0,0,{"$f":"IF(A151>$E$7,0,IF($R$2=2,IPMT($E$10/12,A151,$E$7,$E$40),((($E$5-SUM($E$41:E150))*$E$10/12))))","v":0},0,null,null,null,null,null,null,null," ",null,null,"х","х",null,1.3824319466948509E-10,3]
[112,"2032-08-01",31,0,0,{"$f":"IF(A152>$E$7,0,IF($R$2=2,IPMT($E$10/12,A152,$E$7,$E$40),((($E$5-SUM($E$41:E151))*$E$10/12))))","v":0},0,null,null,null,null,null,null,null," ",null,null,"х","х",null,1.3824319466948509E-10,4]
[113,"2032-09-01",31,0,0,{"$f":"IF(A153>$E$7,0,IF($R$2=2,IPMT($E$10/12,A153,$E$7,$E$40),((($E$5-SUM($E$41:E152))*$E$10/12))))","v":0},0,null,null,null,null,null,null,null," ",null,null,"х","х",null,1.3824319466948509E-10,5]
[114,"2032-10-01",30,0,0,{"$f":"IF(A154>$E$7,0,IF($R$2=2,IPMT($E$10/12,A154,$E$7,$E$40),((($E$5-SUM($E$41:E153))*$E$10/12))))","v":0},0,null,null,null,null,null,null,null," ",null,null,"х","х",null,1.3824319466948509E-10,6]
[115,"2032-11-01",31,0,0,{"$f":"IF(A155>$E$7,0,IF($R$2=2,IPMT($E$10/12,A155,$E$7,$E$40),((($E$5-SUM($E$41:E154))*$E$10/12))))","v":0},0,null,null,null,null,null,null,null," ",null,null,"х","х",null,1.3824319466948509E-10,7]
[116,"2032-12-01",30,0,0,{"$f":"IF(A156>$E$7,0,IF($R$2=2,IPMT($E$10/12,A156,$E$7,$E$40),((($E$5-SUM($E$41:E155))*$E$10/12))))","v":0},0,null,null,null,null,null,null,null," ",null,null,"х","х",null,1.3824319466948509E-10,8]
[117,"2033-01-01",31,0,0,{"$f":"IF(A157>$E$7,0,IF($R$2=2,IPMT($E$10/12,A157,$E$7,$E$40),((($E$5-SUM($E$41:E156))*$E$10/12))))","v":0},0,null,null,null,null,null,null,null," ",null,null,"х","х",null,1.3824319466948509E-10,9]
[118,"2033-02-01",31,0,0,{"$f":"IF(A158>$E$7,0,IF($R$2=2,IPMT($E$10/12,A158,$E$7,$E$40),((($E$5-SUM($E$41:E157))*$E$10/12))))","v":0},0,null,null,null,null,null,null,null," ",null,null,"х","х",null,1.3824319466948509E-10,10]
[119,"2033-03-01",28,0,0,{"$f":"IF(A159>$E$7,0,IF($R$2=2,IPMT($E$10/12,A159,$E$7,$E$40),((($E$5-SUM($E$41:E158))*$E$10/12))))","v":0},0,null,null,null,null,null,null,null," ",null,null,"х","х",null,1.3824319466948509E-10,11]
[120,"2033-04-01",31,0,0,{"$f":"IF(A160>$E$7,0,IF($R$2=2,IPMT($E$10/12,A160,$E$7,$E$40),((($E$5-SUM($E$41:E159))*$E$10/12))))","v":0},0,null,null,null,null,null,null,null," ",null,null,"х","х",null,1.3824319466948509E-10,0]
["Усього",null,null,null,{"$f":"SUM(E41:E160)","v":1000000},564888.10626877239,0,{"$f":"SUM(H40:H160)","v":0},{"$f":"SUM(I40:I160)","v":10000},{"$f":"SUM(J40:J160)","v":0},0,0,12500,12000,36000,30300,{"$f":"SUM(Q40:Q160)","v":0},{"$f":"XIRR(D40:D160,B40:B160)","v":0.33615334630012517},{"$f":"SUM(E161:P161)","v":1665688.1062687724}]
[]
[null,"Один екземпляр Інформації про умови кредитування та орієнтовну сукупну вартість кредиту отримав(ла).",null,null,null,null,null,null,"_______________________",null,null,null,null,null,"____________________",null,"________________________"]
[null,null,null,null,null,null,null,null,"дата",null,null,null,null,null,"підпис",null,"ініціали та прізвище фізичної особи"]
["Примітка: \nобчислення  реальної процентної ставки базується на припущенні, що :\n1)договір про споживчий кредит залишається дійсним протягом погодженого строку та що кредитодавець  і споживач виконають свої обов `язки на умовах та у строки, визначені в договорі;\n2) процентна ставка та інші платежі за послуги кредитодавця  залишатимуться незмінними та застосовуватимуться протягом строку дії договору про споживчий кредит."]

{"sheet":"Додаток 21 \"Форма інформування\"","index":2,"n_rows":81,"n_cols":8,"rows_kept":81,"cut":false,"hidden":true,"merged":[[61,1,61,7],[26,5,27,5],[19,1,19,2],[19,3,19,4],[34,1,34,2],[20,3,20,4],[21,3,21,4],[20,1,21,2],[22,1,22,4],[47,3,47,7],[47,2,48,2],[48,3,48,7],[25,2,27,2],[25,3,25,4],[25,5,25,7],[26,3,27,3],[2,1,2,2],[3,1,3,2],[15,1,17,6],[24,1,24,6],[1,1,1,3],[1,5,1,6],[51,3,51,7],[52,3,52,7],[26,4,27,4],[26,7,27,7],[46,3,46,7],[30,1,30,3],[31,1,31,3],[32,1,32,2],[33,1,33,2],[30,5,31,7],[36,1,36,2],[59,1,59,7],[60,1,60,7],[63,1,63,7],[37,3,37,7],[38,3,38,7],[39,3,39,7],[40,3,40,7],[41,3,41,7],[42,3,42,7],[54,3,54,7],[55,3,55,7],[43,3,43,7],[44,3,44,7],[45,3,45,7],[53,3,53,7],[50,3,50,7],[0,0,0,7],[73,1,73,7],[64,1,64,2],[64,4,64,6],[65,3,65,6],[66,1,66,7],[72,1,72,7],[70,1,70,2],[67,1,67,7],[68,1,68,2],[68,4,68,6],[69,3,69,6],[71,1,71,7],[49,3,49,7],[56,3,56,7],[58,1,58,7]]}
["Інформація про умови кредитування та орієнтовну сукупну вартість кредиту"]
[null,"ПУБЛІЧНЕ АКЦІОНЕРНЕ ТОВАРИСТВО \"ТАСКОМБАНК\"  "]
[null,"Україна, 01032, м. Київ, вул. С. Петлюри, 30,"]
[null,"безкоштовний телефон: 0 (800) 503 580"]
[]
[null,null,"Розмір кредиту:"]
[null,null,"Вартість товару (послуги):",{"$f":"'Додатки №1-2 \"Калькулятор\" '!O4","v":0},"грн."]
[null,null,"Сума на поточні потреби",{"$f":"'Додатки №1-2 \"Калькулятор\" '!O5","v":0},"грн."]
[null,null,"Сума авансу:",{"$f":"'Додатки №1-2 \"Калькулятор\" '!O7","v":0},"грн."]
[null,null,"Страховий платiж:",{"$f":"'Додатки №1-2 \"Калькулятор\" '!O40","v":9000},"грн."]
[null,null,"Оцінка предмету застави",{"$f":"'Додатки №1-2 \"Калькулятор\" '!E21","v":3000},"грн."]
[null,null,"Послуги нотаріуса",{"$f":"'Додатки №1-2 \"Калькулятор\" '!E19","v":12500},"грн."]
[null,null,"Плата за надання кредиту:",{"$f":"'Додатки №1-2 \"Калькулятор\" '!I40*(-1)","v":-10000},"грн."]
[null,null,"Сума договору:",{"$f":"'Додатки №1-2 \"Калькулятор\" '!E5","v":1000000},"грн."]
[null,null,"Страхова сума:",{"$f":"'Додатки №1-2 \"Калькулятор\" '!O8","v":0},"грн."]
[null,"Розмір кредиту визначається, як сума вартості товару (послуги) та сума на поточні потреби (за наявності) за мінусом авансового внеску клієнта"]
[]
[]
[]
[null,"Internet-banking ТАС 24",null,"             Сплачуйте кредитну заборгованість через Інтернет, а також"]
[null,"https://tas24.ua",null,"-             Поповнюйте депозити"]
[null,null,null,"-             Здійснюйте платежі"]
[null,"Реєстрація та надання послуг безкоштовні. Детальніше на сайті системи https://tas24.ua"]
[]
[null,"                     Таблиця орієнтовних щомісячних платежів та подорожчання*:"]
[null,"Строк кредиту","Щомісячний платіж, грн","Орієнтовна сукупна вартість кредиту,всього:",null,"в тому числi"]
[null,"(місяців)",null,"у %","у грн.","Сума плати за надання кредиту, грн.","Сума плати за користування кредитом","Сума плати за обслуговування кредитної заборгованості, грн."]
[null,null,null,null,null,null,"(процентів), грн."]
[null,{"$f":"'Додатки №1-2 \"Калькулятор\" '!E7","v":48},{"$f":"('Додатки №1-2 \"Калькулятор\" '!D161+'Додатки №1-2 \"Калькулятор\" '!I161+'Додатки №1-2 \"Калькулятор\" '!O161+'Додатки №1-2 \"Калькулятор\" '!P161+'Додатки №1-2 \"Калькулятор\" '!Q161)/'Додаток 21 \"Форма інформування\"'!B29","v":1589.5833333333333},{"$f":"'Додатки №1-2 \"Калькулятор\" '!R161","v":0.33615334630012517},{"$f":"'Додатки №1-2 \"Калькулятор\" '!S161","v":1665688.1062687724},{"$f":"D13","v":-10000},{"$f":"'Додатки №1-2 \"Калькулятор\" '!F161","v":564888.10626877239},{"$f":"'Додатки №1-2 \"Калькулятор\" '!G161+'Додатки №1-2 \"Калькулятор\" '!#REF!+'Додатки №1-2 \"Калькулятор\" '!J161+'Додатки №1-2 \"Калькулятор\" '!O161+'Додатки №1-2 \"Калькулятор\" '!P161+'Додатки №1-2 \"Калькулятор\" '!Q161","v":{"$error":"#REF!"}}]
[]
[null,"Переваги кредитування в рамках даного продукту:",null,null,null,"Вадами кредитування в рамках даного  продукту є подорожчання товару/послуги"]
[null,"·Оптимізація власного бюджету, за рахунок стабільних платежів"]
[null,"·Моментальне отримання товару"]
[null,"·Низька відсоткова ставка"]
[null,"·Зменшення переплати при достроковому погашенні."]
[]
[null,"Умови кредитування:"]
[null,null,"Назва кредитного продукту:",{"$f":"'Додатки №1-2 \"Калькулятор\" '!E2","v":0}]
[null,null,"Валюта кредиту:",{"$f":"IF($D$38=Продукты!$B$2,Продукты!B3,IF($D$38=Продукты!$C$2,Продукты!C3,IF($D$38=Продукты!$D$2,Продукты!D3,IF($D$38=Продукты!$E$2,Продукты!E3,IF($D$38=Продукты!$F$2,Продукты!F3,IF($D$38=Продукты!$G$2,Продукты!G3,IF($D$38=Продукты!$H$2,Продукты!H3,IF($D$38=Продукты!$I$2,Продукты!I3,IF($D$38=Продукты!K2,Продукты!K3,IF($D$38=Продукты!L2,Продукты!L3,Продукты!N3))))))))))","v":"Гривня"}]
[null,null,"Форма кредиту:",{"$f":"IF($D$38=Продукты!$B$2,Продукты!B4,IF($D$38=Продукты!$C$2,Продукты!C4,IF($D$38=Продукты!$D$2,Продукты!D4,IF($D$38=Продукты!$E$2,Продукты!E4,IF($D$38=Продукты!$F$2,Продукты!F4,IF($D$38=Продукты!$G$2,Продукты!G4,IF($D$38=Продукты!$H$2,Продукты!H4,IF($D$38=Продукты!$I$2,Продукты!I4,IF($D$38=Продукты!K2,Продукты!K4,IF($D$38=Продукты!L2,Продукты!L4,Продукты!N4))))))))))","v":"Строковий кредит.\nСтроковий кредит - сума грошових коштів, що одноразово надається позичальнику на принципах безумовного повернення, строковості, платності, цільової спрямованості та забезпеченості.\nВиконання зобов’язання за кредитним договором, а саме повернення кредиту, сплата процентів та щомісячних комісій (в разі наявності) здійснюється таким чином:\n- проценти сплачуються щомісячно;\n- основний борг повертається щомісячно рівними частинами або ануїтетними платежами."}]
[null,null,"Мета кредиту:",{"$f":"IF($D$38=Продукты!$B$2,Продукты!B5,IF($D$38=Продукты!$C$2,Продукты!C5,IF($D$38=Продукты!$D$2,Продукты!D5,IF($D$38=Продукты!$E$2,Продукты!E5,IF($D$38=Продукты!$F$2,Продукты!F5,IF($D$38=Продукты!$G$2,Продукты!G5,IF($D$38=Продукты!$H$2,Продукты!H5,IF($D$38=Продукты!$I$2,Продукты!I5,IF($D$38=Продукты!K2,Продукты!K5,IF($D$38=Продукты!L2,Продукты!L5,Продукты!N5))))))))))","v":"Кредит надається безготівково на оплату товарів чи послуг та оплату супутніх послуг, які пов’язані з отриманням, обслуговуванням і погашенням кредиту."}]
[null,null,"Тип процентної ставки",{"$f":"IF($D$38=Продукты!$B$2,Продукты!B6,IF($D$38=Продукты!$C$2,Продукты!C6,IF($D$38=Продукты!$D$2,Продукты!D6,IF($D$38=Продукты!$E$2,Продукты!E6,IF($D$38=Продукты!$F$2,Продукты!F6,IF($D$38=Продукты!$G$2,Продукты!G6,IF($D$38=Продукты!$H$2,Продукты!H6,IF($D$38=Продукты!$I$2,Продукты!I6,IF($D$38=Продукты!K2,Продукты!K6,IF($D$38=Продукты!L2,Продукты!L6,Продукты!N6))))))))))","v":"Фіксована"}]
[null,null,"Плата за користування кредитом (проценти):",{"$f":"IF($D$38=Продукты!$B$2,Продукты!B7,IF($D$38=Продукты!$C$2,Продукты!C7,IF($D$38=Продукты!$D$2,Продукты!D7,IF($D$38=Продукты!$E$2,Продукты!E7,IF($D$38=Продукты!$F$2,Продукты!F7,IF($D$38=Продукты!$G$2,Продукты!G7,IF($D$38=Продукты!$H$2,Продукты!H7,IF($D$38=Продукты!$I$2,Продукты!I7,IF($D$38=Продукты!K2,Продукты!K7,IF($D$38=Продукты!L2,Продукты!L7,Продукты!N7))))))))))","v":"Від 0,001%"}]
[null,null,"Страховий тариф:",{"$f":"IF($D$38=Продукты!$B$2,Продукты!B8,IF($D$38=Продукты!$C$2,Продукты!C8,IF($D$38=Продукты!$D$2,Продукты!D8,IF($D$38=Продукты!$E$2,Продукты!E8,IF($D$38=Продукты!$F$2,Продукты!F8,IF($D$38=Продукты!$G$2,Продукты!G8,IF($D$38=Продукты!$H$2,Продукты!H8,IF($D$38=Продукты!$I$2,Продукты!I8,IF($D$38=Продукты!K2,Продукты!K8,IF($D$38=Продукты!L2,Продукты!L8,Продукты!N8))))))))))","v":"2,99% - страхування життя, від 6,0% - страхування КАСКО, від 400 грн. - страхування ОСАГО"}]
[null,null,"Cтроки фінансування:",{"$f":"IF($D$38=Продукты!$B$2,Продукты!B9,IF($D$38=Продукты!$C$2,Продукты!C9,IF($D$38=Продукты!$D$2,Продукты!D9,IF($D$38=Продукты!$E$2,Продукты!E9,IF($D$38=Продукты!$F$2,Продукты!F9,IF($D$38=Продукты!$G$2,Продукты!G9,IF($D$38=Продукты!$H$2,Продукты!H9,IF($D$38=Продукты!$I$2,Продукты!I9,IF($D$38=Продукты!K2,Продукты!K9,IF($D$38=Продукты!L2,Продукты!L9,Продукты!N9))))))))))","v":"Від 3 міс. до 84 міс."}]
[null,null,"Cуми кредитування:",{"$f":"IF($D$38=Продукты!$B$2,Продукты!B10,IF($D$38=Продукты!$C$2,Продукты!C10,IF($D$38=Продукты!$D$2,Продукты!D10,IF($D$38=Продукты!$E$2,Продукты!E10,IF($D$38=Продукты!$F$2,Продукты!F10,IF($D$38=Продукты!$G$2,Продукты!G10,IF($D$38=Продукты!$H$2,Продукты!H10,IF($D$38=Продукты!$I$2,Продукты!I10,IF($D$38=Продукты!K2,Продукты!K10,IF($D$38=Продукты!L2,Продукты!L10,Продукты!N10))))))))))","v":"Від 50 тис. до 800 тис. грн."}]
[null,null,"Форма забезпечення:",{"$f":"IF($D$38=Продукты!$B$2,Продукты!B11,IF($D$38=Продукты!$C$2,Продукты!C11,IF($D$38=Продукты!$D$2,Продукты!D11,IF($D$38=Продукты!$E$2,Продукты!E11,IF($D$38=Продукты!$F$2,Продукты!F11,IF($D$38=Продукты!$G$2,Продукты!G11,IF($D$38=Продукты!$H$2,Продукты!H11,IF($D$38=Продукты!$I$2,Продукты!I11,IF($D$38=Продукты!K2,Продукты!K11,IF($D$38=Продукты!L2,Продукты!L11,Продукты!N11))))))))))","v":"Застава автомобіля"}]
[null,null,"Необхідність здійснення оцінки майна",{"$f":"IF($D$38=Продукты!$B$2,Продукты!B12,IF($D$38=Продукты!$C$2,Продукты!C12,IF($D$38=Продукты!$D$2,Продукты!D12,IF($D$38=Продукты!$E$2,Продукты!E12,IF($D$38=Продукты!$F$2,Продукты!F12,IF($D$38=Продукты!$G$2,Продукты!G12,IF($D$38=Продукты!$H$2,Продукты!H12,IF($D$38=Продукты!$I$2,Продукты!I12,IF($D$38=Продукты!K2,Продукты!K12,IF($D$38=Продукты!L2,Продукты!L12,Продукты!N12))))))))))","v":"Необхідність оцінки майна відсутня"}]
[null,null,null,{"$f":"IF(D48=\"Заставна вартість нерухомості встановлюється на підставі проведеної незалежної оцінки незалежним оцінювачем \",'Додатки №1-2 \"Калькулятор\" '!E20,\" \")","v":" "}]
[null,null,"Варіанти повернення (погашення) кредиту:"]
[null,null,"Форма (варіанти) погашення кредиту:",{"$f":"IF($D$38=Продукты!$B$2,Продукты!B14,IF($D$38=Продукты!$C$2,Продукты!C14,IF($D$38=Продукты!$D$2,Продукты!D14,IF($D$38=Продукты!$E$2,Продукты!E14,IF($D$38=Продукты!$F$2,Продукты!F14,IF($D$38=Продукты!$G$2,Продукты!G14,IF($D$38=Продукты!$H$2,Продукты!H14,IF($D$38=Продукты!$I$2,Продукты!I14,IF($D$38=Продукты!K2,Продукты!K14,IF($D$38=Продукты!L2,Продукты!L14,Продукты!N14))))))))))","v":"Класична форма погашення/щомісячно рівними (ануїтетними) платежами.\nПереваги класичної форми погашення: сума нарахованих процентів зменьшується значно швидше, ніж при ануїтетному платежі.\nНедоліки класичної форми погашення: на початк користування кредитними коштами сума щомісячного платежу буде більшою, ніж при поверненні ануїтетними платежами.\nПереваги ануїтетних платежів: повернення кредиту рівними платежами протягом всього строку кредитування. Зручність для позичальників з незмінною щомісячною сумою доходів. Щомісячний платіж меньший в порівнянні з поверненням кредитних коштів рівними частинами.\nНедоліки ануїтетних платежів: сума нарахованих процентів за весь строк користування кредитними коштами буде більше, ніж при поверненні кредиту рівними частинами."}]
[null,null,"Дострокове погашення:",{"$f":"IF($D$38=Продукты!$B$2,Продукты!B15,IF($D$38=Продукты!$C$2,Продукты!C15,IF($D$38=Продукты!$D$2,Продукты!D15,IF($D$38=Продукты!$E$2,Продукты!E15,IF($D$38=Продукты!$F$2,Продукты!F15,IF($D$38=Продукты!$G$2,Продукты!G15,IF($D$38=Продукты!$H$2,Продукты!H15,IF($D$38=Продукты!$I$2,Продукты!I15,IF($D$38=Продукты!K2,Продукты!K15,IF($D$38=Продукты!L2,Продукты!L15,Продукты!N15))))))))))","v":"Можливе часткове або повне дострокове погашення кредиту на умовах відсутності штрафних санкцій за вчинення таких дій позичальником"}]
[null,null,"Остаточне погашення:",{"$f":"IF($D$38=Продукты!$B$2,Продукты!B16,IF($D$38=Продукты!$C$2,Продукты!C16,IF($D$38=Продукты!$D$2,Продукты!D16,IF($D$38=Продукты!$E$2,Продукты!E16,IF($D$38=Продукты!$F$2,Продукты!F16,IF($D$38=Продукты!$G$2,Продукты!G16,IF($D$38=Продукты!$H$2,Продукты!H16,IF($D$38=Продукты!$I$2,Продукты!I16,IF($D$38=Продукты!K2,Продукты!K16,IF($D$38=Продукты!L2,Продукты!L16,Продукты!N16))))))))))","v":"В кінці строку, вказаного в Кредитному договорі"}]
[null,null,"Податковий режим сплати процентів та державні субсидії",{"$f":"IF($D$38=Продукты!$B$2,Продукты!B17,IF($D$38=Продукты!$C$2,Продукты!C17,IF($D$38=Продукты!$D$2,Продукты!D17,IF($D$38=Продукты!$E$2,Продукты!E17,IF($D$38=Продукты!$F$2,Продукты!F17,IF($D$38=Продукты!$G$2,Продукты!G17,IF($D$38=Продукты!$H$2,Продукты!H17,IF($D$38=Продукты!$I$2,Продукты!I17,IF($D$38=Продукты!K2,Продукты!K17,IF($D$38=Продукты!L2,Продукты!L17,Продукты!N17))))))))))","v":"По даному кредитному продукту податкові знижки відсутні, державні субсидії не передбачені"}]
[null,null,"Супутні послуги:"]
[null,null,"Плата за обслуговування кредитної заборгованості:",{"$f":"IF($D$38=Продукты!$B$2,Продукты!B19,IF($D$38=Продукты!$C$2,Продукты!C19,IF($D$38=Продукты!$D$2,Продукты!D19,IF($D$38=Продукты!$E$2,Продукты!E19,IF($D$38=Продукты!$F$2,Продукты!F19,IF($D$38=Продукты!$G$2,Продукты!G19,IF($D$38=Продукты!$H$2,Продукты!H19,IF($D$38=Продукты!$I$2,Продукты!I19,IF($D$38=Продукты!K2,Продукты!K19,IF($D$38=Продукты!L2,Продукты!L19,Продукты!N19))))))))))","v":"1,4% від суми кредиту"}]
[null,null,"Плата за надання кредиту:",{"$f":"IF($D$38=Продукты!$B$2,Продукты!B20,IF($D$38=Продукты!$C$2,Продукты!C20,IF($D$38=Продукты!$D$2,Продукты!D20,IF($D$38=Продукты!$E$2,Продукты!E20,IF($D$38=Продукты!$F$2,Продукты!F20,IF($D$38=Продукты!$G$2,Продукты!G20,IF($D$38=Продукты!$H$2,Продукты!H20,IF($D$38=Продукты!$I$2,Продукты!I20,IF($D$38=Продукты!K2,Продукты!K20,IF($D$38=Продукты!L2,Продукты!L20,Продукты!N20))))))))))","v":"від 0 до 2% від суми кредиту"}]
[]
[null,"Обов'язкові документи:"]
[null,"1. Паспорт громадянина України"]
[null,"2. Довідка про присвоєння ідентифікаційного номера платника податків (картка платника податків)"]
[null,"В окремих випадках Банк залишає за собою право вимагати інші документи, необхідні для визначення платоспроможності позичальника та які є необхідними для надання споживчого кредиту. "]
[]
[null,"З підписанням цієї Інформації (довідки) про кредит позичальник засвідчує, що перед укладанням Кредитного договору він ознайомлений з інформацією про  умови кредитування, а також повідомлений про орієнтовну сукупну вартість кредиту і ці умови є зрозумілими"]
[null,"_________________________________",null,null,"______________________"]
[null,null,"Позичальник","Уповноважена особа АТ \"ТАСКОМБАНК\""]
[null,"Ця Інформація (довідка) про кредит у разі укладання Кредитного договору №____________________ від______________20___р.** вважається (і) його невід’ємною частиною та (іі) детальним розписом сукупної вартості кредиту з урахуванням процентної ставки за ним, "]
[null,"п.3.1. та 3.4. Постанови Правління Національного банку України від 10.05.07р. №168 «Про затвердження Правил надання банками України інформації споживачу про умови кредитування та сукупну вартість кредиту»."]
[null,"_________________________________",null,null,"______________________"]
[null,null,"Позичальник","Уповноважена особа АТ \"ТАСКОМБАНК\""]
[null,"_ _ _ _ _ _ _ _ _ _ _ _ _ _ _"]
[null,"*Таблиця орієнтованих щомісячних платежів та подорожчання відображає суму щомісячного погашення кредиту в залежності від вибраного Вами строку кредитування. Таблиця НЕ Є графіком погашення. Графік погашення та чітка сума щомісячного платежу зазначені у Кредитному договорі"]
[null,"**У разі фактичного укладання Кредитного договору його номер та дата вписується уповноваженою особою АТ \"ТАСКОМБАНК\", на підтвердження чого Позичальник та уповноважена особа АТ \"ТАСКОМБАНК\" ставлять нижче свої підписи. "]
[null,"Один екземпляр Інформації про умови кредитування та орієнтовну сукупну вартість кредиту отримав(ла)."]
[]
[null,"_______________________",null,"____________________",null,"________________________"]
[null,"дата",null,"підпис",null,"ініціали та прізвище фізичної особи"]
[]
[]
[null,"_______________________",null,"____________________",null,"________________________"]
[null,"дата",null,"підпис",null,"ініціали та прізвище виконавця"]

{"sheet":"Продукты","index":3,"n_rows":23,"n_cols":14,"rows_kept":23,"cut":false,"hidden":true,"merged":[]}
[]
["Назва кредитного продукту","Кредит «Вперед к мечте»","Кредит на покупку недвижимости","Кредит под залог недвижимости","Кредит под депозит","Кредит на купівлю автомобіля, що був у використанні","Овердрафт для держателей зарплатных карт","Кредитная карта VIP","Овердрафт GOLD","Кредит на навчання","Кеш-кредит \"Зручна готівка\" із послугою страхування","Лізинг нерухомості","Кредит \"Легкий\"","Кредит \"Автосалон\""]
["Валюта кредиту","Гривня","Гривня","Гривня","Гривня/Долар США/Євро, відповідає валюті депозиту","Гривня","Гривня","Гривня","Гривня","Гривня","Гривня","Гривня","Гривня","Гривня"]
["Форма кредиту","Строковий кредит.\nСтроковий кредит - сума грошових коштів, що одноразово надається позичальнику на принципах безумовного повернення, строковості, платності, цільової спрямованості та забезпеченості.\nВиконання зобов’язання за кредитним договором, а саме повернення кредиту, сплата процентів та щомісячних комісій (в разі наявності) здійснюється таким чином:\n- проценти сплачуються щомісячно;\n- основний борг повертається щомісячно рівними частинами або ануїтетними платежами.","Строковий кредит.\nСтроковий кредит - сума грошових коштів, що одноразово надається позичальнику на принципах безумовного повернення, строковості, платності, цільової спрямованості та забезпеченості.\nВиконання зобов’язання за кредитним договором, а саме повернення кредиту, сплата процентів та щомісячних комісій (в разі наявності) здійснюється таким чином:\n- проценти сплачуються щомісячно;\n- основний борг повертається щомісячно рівними частинами або ануїтетними платежами.","Строковий кредит/кредитна лінія\nСтроковий кредит - сума грошових коштів, що одноразово надається позичальнику на принципах безумовного повернення, строковості, платності, цільової спрямованості та забезпеченості.\nКредитна лінія – кредитна угода, відповідно до якої протягом передбаченого договором терміну банк виділяє позичальнику кредит у межах узгодженої суми (ліміту кредитування) на умовах, що відрізняються від умов одноразового надання кредиту.","Строковий кредит/кредитна лінія\nСтроковий кредит - сума грошових коштів, що одноразово надається позичальнику на принципах безумовного повернення, строковості, платності, цільової спрямованості та забезпеченості.\nКредитна лінія – кредитна угода, відповідно до якої протягом передбаченого договором терміну банк виділяє позичальнику кредит у межах узгодженої суми (ліміту кредитування) на умовах, що відрізняються від умов одноразового надання кредиту.","Строковий кредит.\nСтроковий кредит - сума грошових коштів, що одноразово надається позичальнику на принципах безумовного повернення, строковості, платності, цільової спрямованості та забезпеченості.\nВиконання зобов’язання за кредитним договором, а саме повернення кредиту, сплата процентів та щомісячних комісій (в разі наявності) здійснюється таким чином:\n- проценти сплачуються щомісячно;\n- основний борг повертається щомісячно рівними частинами або ануїтетними платежами.","Кредит у формі овердрафту","Кредит у формі овердрафту","Кредит у формі овердрафту","Картковий кредит","Кредит готівкою","Лізинг \nЛізинг — підприємницька діяльність, спрямована на інвестування власних чи залучених фінансових коштів, яка полягає в наданні лізингодавцем у виключне користування на визначений строк лізингоодержувачу майна.","Строковий кредит.\nСтроковий кредит - сума грошових коштів, що одноразово надається позичальнику на принципах безумовного повернення, строковості, платності, цільової спрямованості та забезпеченості.\nВиконання зобов’язання за кредитним договором, а саме повернення кредиту, сплата процентів та щомісячних комісій (в разі наявності) здійснюється таким чином:\n- проценти сплачуються щомісячно;\n- основний борг повертається щомісячно рівними частинами або ануїтетними платежами.","Строковий кредит.\nСтроковий кредит - сума грошових коштів, що одноразово надається позичальнику на принципах безумовного повернення, строковості, платності, цільової спрямованості та забезпеченості.\nВиконання зобов’язання за кредитним договором, а саме повернення кредиту, сплата процентів та щомісячних комісій (в разі наявності) здійснюється таким чином:\n- проценти сплачуються щомісячно;\n- основний борг повертається щомісячно рівними частинами або ануїтетними платежами."]
["Мета кредиту","Кредит надається на купівлю нерухомості на вторинному ринку","Кредит надається на купівлю нерухомості","Кредит надається на купівлю нерухомості","Кредит надається безготівково на оплату товарів чи послуг та оплату супутніх послуг, які пов’язані з отриманням, обслуговуванням і погашенням кредиту.","Кредит надається безготівково на оплату товарів чи послуг та оплату супутніх послуг, які пов’язані з отриманням, обслуговуванням і погашенням кредиту.","Кредит надається безготівково на оплату товарів чи послуг та оплату супутніх послуг, які пов’язані з отриманням, обслуговуванням і погашенням кредиту.","Кредит надається безготівково на оплату товарів чи послуг та оплату супутніх послуг, які пов’язані з отриманням, обслуговуванням і погашенням кредиту.","Кредит надається безготівково на оплату товарів чи послуг та оплату супутніх послуг, які пов’язані з отриманням, обслуговуванням і погашенням кредиту.","Кредит надається безготівково на оплату товарів чи послуг та оплату супутніх послуг, які пов’язані з отриманням, обслуговуванням і погашенням кредиту.","Споживчі потреби","Фінансування надається безготівково на оплату товарів чи послуг та оплату супутніх послуг, які пов’язані з отриманням, обслуговуванням і погашенням фінансування.","Кредит надається безготівково на оплату товарів чи послуг та оплату супутніх послуг, які пов’язані з отриманням, обслуговуванням і погашенням кредиту.","Кредит надається безготівково на оплату товарів чи послуг та оплату супутніх послуг, які пов’язані з отриманням, обслуговуванням і погашенням кредиту."]
["Тип процентної ставки","Фіксована","Фіксована","Фіксована","Фіксована","Фіксована","Фіксована","Фіксована","Фіксована","Фіксована","Фіксована","Фіксована","Фіксована","Фіксована"]
["Плата за користування кредитом","Від 14% річних","24% річних - ануїтетна схема погашення; 24% - стандартна схема погашення","24% річних - ануїтетна схема погашення; 24% - стандартна схема погашення","Ставка по депозиту + 2,7%","Від 19,9%","36% річних","0,001% річних","35% річних","36% річних","19,99% річних","24% річних","Від 19,9%","Від 0,001%"]
["Страховий тариф","3% від залишку заборгованості по кредиту щорічно","0,5% - страхування життя, 0,3% - страхування предмету застави","0,5% - страхування життя, 0,3% - страхування предмету застави","-","2,99% - страхування життя, від 5,99% - страхування КАСКО, від 400 грн. - страхування ОСАГО","-","-","-","-","6% на рік, оплачується при оформленні кредиту одразу на весь строк кредиту шляхом перерахування на рахунок страхової компанії з Позичковго рахунку","1% - страхування життя, 0,3% - страхування предмету лізингу","2,99% - страхування життя, від 6,0% - страхування КАСКО, від 400 грн. - страхування ОСАГО","2,99% - страхування життя, від 6,0% - страхування КАСКО, від 400 грн. - страхування ОСАГО"]
["Строки кредитування","від 12 до 60 місяців","До 10 років","До 10 років","Строк депозиту - 32 дні","Від 3 міс. до 84 міс.","12 місяців","12 місяців","12 місяців","5 місяців","12/24/36 місяців","До 10 років","Від 3 міс. до 84 міс.","Від 3 міс. до 84 міс."]
["Суми кредитування","від 100 до 400 тис. грн.","Від 25 тис. до 2 млн. грн.","Від 25 тис. до 2 млн. грн., але не більше 50% вартості житла, яке надається в заставу",null,"Від 50 тис. до 800 тис. грн.","Від 500 грн. до 15 тис. грн. (але не більше 50% заробітної платні)","До 500 тис. грн.","До 50 тис. грн.","До 20 тис. грн.","Від 2 000 до 50 000 грн. з врахуванням суми страхового платежу","Від 25 тис. до 2 млн. грн.","Від 50 тис. до 800 тис. грн.","Від 50 тис. до 800 тис. грн."]
["Форма забезпечення","Застава автомобіля","Придбана нерухомість, порука фізичної (их) особи (осіб) ","Нерухоме майно, порука фізичної (их) особи (осіб)","Майнові права на депозит","Застава автомобіля","Забезпечення відсутнє","Забезпечення відсутнє","Забезпечення відсутнє","Забезпечення відсутнє","Забезпечення відсутнє","Придбана нерухомість","Застава автомобіля","Застава автомобіля"]
["Необхідність здійснення оцінки майна","Необхідність оцінки майна відсутня","Присутня необхідність проведення оцінки майна за рахунок клієнта у випадку передачі в іпотеку домоволодіння та/або земельної ділянки","Присутня необхідність проведення оцінки майна за рахунок клієнта у випадку передачі в іпотеку домоволодіння та/або земельної ділянки","Необхідність оцінки майна відсутня","Присутня необхідність проведення оцінки майна за рахунок клієнта","Необхідність оцінки майна відсутня","Необхідність оцінки майна відсутня","Необхідність оцінки майна відсутня","Необхідність оцінки майна відсутня","Необхідність оцінки майна відсутня","Присутня необхідність проведення оцінки майна за рахунок клієнта","Необхідність оцінки майна відсутня","Необхідність оцінки майна відсутня"]
["Варіанти повернення кредиту:"]
["Форма погашення кредиту","Щомісячно рівними (аннуїтетними) платежами.\nПереваги ануїтетних платежів: повернення кредиту рівними платежами протягом всього строку кредитування. Зручність для позичальників з незмінною щомісячною сумою доходів. Щомісячний платіж меньший в порівнянні з поверненням кредитних коштів рівними частинами.\nНедоліки ануїтетних платежів: сума нарахованих процентів за весь строк користування кредитними коштами буде більше, ніж при поверненні кредиту рівними частинами.","Класична форма погашення/щомісячно рівними (ануїтетними) платежами.\nПереваги класичної форми погашення: сума нарахованих процентів зменьшується значно швидше, ніж при ануїтетному платежі.\nНедоліки класичної форми погашення: на початк користування кредитними коштами сума щомісячного платежу буде більшою, ніж при поверненні ануїтетними платежами.\nПереваги ануїтетних платежів: повернення кредиту рівними платежами протягом всього строку кредитування. Зручність для позичальників з незмінною щомісячною сумою доходів. Щомісячний платіж меньший в порівнянні з поверненням кредитних коштів рівними частинами.\nНедоліки ануїтетних платежів: сума нарахованих процентів за весь строк користування кредитними коштами буде більше, ніж при поверненні кредиту рівними частинами.","Класична форма погашення/щомісячно рівними (ануїтетними) платежами.\nПереваги класичної форми погашення: сума нарахованих процентів зменьшується значно швидше, ніж при ануїтетному платежі.\nНедоліки класичної форми погашення: на початк користування кредитними коштами сума щомісячного платежу буде більшою, ніж при поверненні ануїтетними платежами.\nПереваги ануїтетних платежів: повернення кредиту рівними платежами протягом всього строку кредитування. Зручність для позичальників з незмінною щомісячною сумою доходів. Щомісячний платіж меньший в порівнянні з поверненням кредитних коштів рівними частинами.\nНедоліки ануїтетних платежів: сума нарахованих процентів за весь строк користування кредитними коштами буде більше, ніж при поверненні кредиту рівними частинами.","Класична форма погашення/щомісячно рівними (ануїтетними) платежами.\nПереваги класичної форми погашення: сума нарахованих процентів зменьшується значно швидше, ніж при ануїтетному платежі.\nНедоліки класичної форми погашення: на початк користування кредитними коштами сума щомісячного платежу буде більшою, ніж при поверненні ануїтетними платежами.\nПереваги ануїтетних платежів: повернення кредиту рівними платежами протягом всього строку кредитування. Зручність для позичальників з незмінною щомісячною сумою доходів. Щомісячний платіж меньший в порівнянні з поверненням кредитних коштів рівними частинами.\nНедоліки ануїтетних платежів: сума нарахованих процентів за весь строк користування кредитними коштами буде більше, ніж при поверненні кредиту рівними частинами.","Класична форма погашення/щомісячно рівними (ануїтетними) платежами.\nПереваги класичної форми погашення: сума нарахованих процентів зменьшується значно швидше, ніж при ануїтетному платежі.\nНедоліки класичної форми погашення: на початк користування кредитними коштами сума щомісячного платежу буде більшою, ніж при поверненні ануїтетними платежами.\nПереваги ануїтетних платежів: повернення кредиту рівними платежами протягом всього строку кредитування. Зручність для позичальників з незмінною щомісячною сумою доходів. Щомісячний платіж меньший в порівнянні з поверненням кредитних коштів рівними частинами.\nНедоліки ануїтетних платежів: сума нарахованих процентів за весь строк користування кредитними коштами буде більше, ніж при поверненні кредиту рівними частинами.","Щомісячний обов'язковий платіж","Щомісячний обов'язковий платіж","Щомісячний обов'язковий платіж","Щомісячний обов'язковий платіж","Щомісячний обов'язковий платіж (ануїтетний)","Класична форма погашення/щомісячно рівними (ануїтетними) платежами.\nПереваги класичної форми погашення: сума нарахованих процентів зменьшується значно швидше, ніж при ануїтетному платежі.\nНедоліки класичної форми погашення: на початк користування кредитними коштами сума щомісячного платежу буде більшою, ніж при поверненні ануїтетними платежами.\nПереваги ануїтетних платежів: повернення кредиту рівними платежами протягом всього строку кредитування. Зручність для позичальників з незмінною щомісячною сумою доходів. Щомісячний платіж меньший в порівнянні з поверненням кредитних коштів рівними частинами.\nНедоліки ануїтетних платежів: сума нарахованих процентів за весь строк користування кредитними коштами буде більше, ніж при поверненні кредиту рівними частинами.","Класична форма погашення/щомісячно рівними (ануїтетними) платежами.\nПереваги класичної форми погашення: сума нарахованих процентів зменьшується значно швидше, ніж при ануїтетному платежі.\nНедоліки класичної форми погашення: на початк користування кредитними коштами сума щомісячного платежу буде більшою, ніж при поверненні ануїтетними платежами.\nПереваги ануїтетних платежів: повернення кредиту рівними платежами протягом всього строку кредитування. Зручність для позичальників з незмінною щомісячною сумою доходів. Щомісячний платіж меньший в порівнянні з поверненням кредитних коштів рівними частинами.\nНедоліки ануїтетних платежів: сума нарахованих процентів за весь строк користування кредитними коштами буде більше, ніж при поверненні кредиту рівними частинами.","Класична форма погашення/щомісячно рівними (ануїтетними) платежами.\nПереваги класичної форми погашення: сума нарахованих процентів зменьшується значно швидше, ніж при ануїтетному платежі.\nНедоліки класичної форми погашення: на початк користування кредитними коштами сума щомісячного платежу буде більшою, ніж при поверненні ануїтетними платежами.\nПереваги ануїтетних платежів: повернення кредиту рівними платежами протягом всього строку кредитування. Зручність для позичальників з незмінною щомісячною сумою доходів. Щомісячний платіж меньший в порівнянні з поверненням кредитних коштів рівними частинами.\nНедоліки ануїтетних платежів: сума нарахованих процентів за весь строк користування кредитними коштами буде більше, ніж при поверненні кредиту рівними частинами."]
["Дострокове погашення","Можливе часткове або повне дострокове погашення кредиту на умовах відсутності штрафних санкцій за вчинення таких дій позичальником.","Можливе часткове або повне дострокове погашення кредиту на умовах відсутності штрафних санкцій за вчинення таких дій позичальником","Можливе часткове або повне дострокове погашення кредиту на умовах відсутності штрафних санкцій за вчинення таких дій позичальником","Можливе часткове або повне дострокове погашення кредиту на умовах відсутності штрафних санкцій за вчинення таких дій позичальником","Можливе часткове або повне дострокове погашення кредиту на умовах відсутності штрафних санкцій за вчинення таких дій позичальником","Можливе часткове або повне дострокове погашення кредиту на умовах відсутності штрафних санкцій за вчинення таких дій позичальником","Можливе часткове або повне дострокове погашення кредиту на умовах відсутності штрафних санкцій за вчинення таких дій позичальником","Можливе часткове або повне дострокове погашення кредиту на умовах відсутності штрафних санкцій за вчинення таких дій позичальником","Можливе часткове або повне дострокове погашення кредиту на умовах відсутності штрафних санкцій за вчинення таких дій позичальником","Можливе часткове або повне дострокове погашення кредиту на умовах відсутності штрафних санкцій за вчинення таких дій позичальником","Можливе часткове або повне дострокове погашення кредиту на умовах відсутності штрафних санкцій за вчинення таких дій лізингоодержувача","Можливе часткове або повне дострокове погашення кредиту на умовах відсутності штрафних санкцій за вчинення таких дій позичальником","Можливе часткове або повне дострокове погашення кредиту на умовах відсутності штрафних санкцій за вчинення таких дій позичальником"]
["Остаточне погашення","В кінці строку, вказаного в Кредитному договорі","В кінці строку, вказаного в Кредитному договорі","В кінці строку, вказаного в Кредитному договорі","В кінці строку, вказаного в Кредитному договорі","В кінці строку, вказаного в Кредитному договорі","В кінці строку, вказаного в Кредитному договорі","В кінці строку, вказаного в Кредитному договорі","В кінці строку, вказаного в Кредитному договорі","В кінці строку, вказаного в Кредитному договорі","В кінці строку, вказаного в Кредитному договорі в Графіку платежів","В кінці строку, вказаного в Договорі лізингу","В кінці строку, вказаного в Кредитному договорі","В кінці строку, вказаного в Кредитному договорі"]
["Податковий режим сплати процентів та державні субсидії","По даному кредитному продукту податкові знижки відсутні, державні субсидії не передбачені","По даному кредитному продукту податкові знижки відсутні, державні субсидії не передбачені","По даному кредитному продукту податкові знижки відсутні, державні субсидії не передбачені","По даному кредитному продукту податкові знижки відсутні, державні субсидії не передбачені","По даному кредитному продукту податкові знижки відсутні, державні субсидії не передбачені","По даному кредитному продукту податкові знижки відсутні, державні субсидії не передбачені","По даному кредитному продукту податкові знижки відсутні, державні субсидії не передбачені","По даному кредитному продукту податкові знижки відсутні, державні субсидії не передбачені","По даному кредитному продукту податкові знижки відсутні, державні субсидії не передбачені","По даному кредитному продукту податкові знижки відсутні, державні субсидії не передбачені","По даному кредитному продукту податкові знижки відсутні, державні субсидії не передбачені","По даному кредитному продукту податкові знижки відсутні, державні субсидії не передбачені","По даному кредитному продукту податкові знижки відсутні, державні субсидії не передбачені"]
["Супутні послуги:"]
["Плата за обслуговування кредитної заборгованості","Комісія відсутня","Комісія відсутня","Комісія відсутня","Комісія відсутня","Комісія відсутня","Комісія відсутня","3% від суми заборгованості на кінець місяця","Комісія відсутня","Комісія відсутня","2,95% від суми кредиту","Комісія відсутня","Комісія відсутня","1,4% від суми кредиту"]
["Плата за надання кредиту","3% від суми кредиту","1,5% від суми кредиту","від 1,5% від суми кредиту","0,5% від суми кредиту","від 0 до 2% від суми кредиту","Від 20 грн. до 300 грн. в залежності від суми кредитного ліміту","Комісія відсутня","Комісія відсутня","Комісія відсутня","Комісія відсутня","Не меньше 1,7% від суми фінансування","від 0 до 2% від суми кредиту","від 0 до 2% від суми кредиту"]
["послуги нотаріуса","Так","Так","Так","Ні","Так",null,null,null,null,null,"Так","Так","Так"]
["послуги оцінювача","Ні","Так\nЧП \"Актив Плюс\", ВАТ \"АКО-Експерт\", ПП \"Вітал-Профі\", ВАТ \"Кредитне Брокерське Агенство\", ВАТ \"Вектор оцінки\"","Так\nЧП \"Актив Плюс\", ВАТ \"АКО-Експерт\", ПП \"Вітал-Профі\", ВАТ \"Кредитне Брокерське Агенство\", ВАТ \"Вектор оцінки\"","Ні","Так\nЧП \"Актив Плюс\", ВАТ \"АКО-Експерт\", ПП \"Вітал-Профі\", ВАТ \"Кредитне Брокерське Агенство\", ВАТ \"Вектор оцінки\"","Ні","Ні","Ні","Ні","Ні","Так\nЧП \"Актив Плюс\", ВАТ \"АКО-Експерт\", ПП \"Вітал-Профі\", ВАТ \"Кредитне Брокерське Агенство\", ВАТ \"Вектор оцінки\"","Ні","Ні"]
["штрафи","Штраф – встановлюється в твердо визначеній грошовій сумі або у процентах від суми невиконаного або неналежного виконаного зобов’язання  і стягується одноразово. \nУ випадку надання завідомо недостовірної інформації, яка стосується умов цього Кредитного договору та/або процесу його виконання, Банк має право нарахувати та стягнути, а Позичальник сплачує Банку штраф у розмірі 5,0 % від суми кредиту.\nУ разі ненадання інформації, щодо фінансового та майнового стану, Банк має право нарахувати та стягнути, а Позичальник сплачує Банку штраф у розмірі 5,0 % від суми наданого кредиту. У разі невиконання умов щодо страхування життя та/або об’єкту застави процентна ставка збільшується на 10%."," - 5% від суми кредиту  за надання Позичальником завідомо недостовірної інформації, яка стосується умов  Кредитного договору та/або процесу його виконання.                                                                                                                                                - 5% від суми кредиту  за від суми наданого Кредиту за ненадання Позичальником інформації щодо його фінансового та майнового стану, а також, інформації, що стосується судових справ, стороною яких є Позичальник.                                                                                                           - 5% від суми кредиту за ненадання  Позичальником інформації та документів щодо зміни  його фінансового та майнового стану та не перешкоджати реалізації права Кредитора щодо проведення перевірки документально і в натурі наявності, стану і умов збереження та користування нерухомим майном, яке є забезпеченням по Кредиту.   "," - 5% від суми кредиту  за надання Позичальником завідомо недостовірної інформації, яка стосується умов  Кредитного договору та/або процесу його виконання.                                                                                                                                                - 5% від суми кредиту  за ненадання Позичальником інформації відносно зміни паспортних даних, місця роботи, контактних номерів телефонів, зміни у складі сім\"ї, а  також, інформації, що стосується судових спарав, стороною яких є Позичальник.                                                                                                           - 5% від суми кредиту за ненадання  Позичальником інформації та документів щодо зміни  його фінансового та майнового стану та не перешкоджати реалізації права Кредитора щодо проведення перевірки документально і в натурі наявності, стану і умов збереження та користування нерухомим майном, яке є забезпеченням по Кредиту.   ","Штраф – встановлюється в твердо визначеній грошовій сумі або у процентах від суми невиконаного або неналежного виконаного зобов’язання  і стягується одноразово.\nУ випадку надання завідомо недостовірної інформації, яка стосується умов Кредитного договору та/або процесу його виконання, Банк має право нарахувати та стягнути, а Позичальник сплачує Банку штраф у розмірі 5,0 % від суми кредиту.","Штраф – встановлюється в твердо визначеній грошовій сумі або у процентах від суми невиконаного або неналежного виконаного зобов’язання  і стягується одноразово. \nУ випадку надання завідомо недостовірної інформації, яка стосується умов цього Кредитного договору та/або процесу його виконання, Банк має право нарахувати та стягнути, а Позичальник сплачує Банку штраф у розмірі 5,0 % від суми кредиту.\nУ разі ненадання інформації, щодо фінансового та майнового стану, Банк має право нарахувати та стягнути, а Позичальник сплачує Банку штраф у розмірі 5,0 % від суми наданого кредиту. У разі невиконання умов щодо страхування життя та/або об’єкту застави процентна ставка збільшується на 10%.",null,null,null,null,null,"Штраф – встановлюється в твердо визначеній грошовій сумі або у процентах від суми невиконаного або неналежного виконаного зобов’язання  і стягується одноразово.\nУ випадку надання завідомо недостовірної інформації, яка стосується умов Кредитного договору та/або процесу його виконання, Банк має право нарахувати та стягнути, а Позичальник сплачує Банку штраф у розмірі 5,0 % (п’ять відсотків) від суми кредиту.\nУ разі ненадання інформації,  щодо фінансового та майнового стану, інформацію, що стосується судових справ, зміни своїх персональних даних, Позичальник зобов'язаний сплатити штраф у розмірі 1,0 % (одного відсотка) від суми наданого кредиту, вказаної у п. 2.1. Кредитного договору.\nУ разі невиконання умов щодо страхування життя та/або об’єкту застави процентна ставка збільшується на 10%.","Штраф – встановлюється в твердо визначеній грошовій сумі або у процентах від суми невиконаного або неналежного виконаного зобов’язання  і стягується одноразово. \nУ випадку надання завідомо недостовірної інформації, яка стосується умов цього Кредитного договору та/або процесу його виконання, Банк має право нарахувати та стягнути, а Позичальник сплачує Банку штраф у розмірі 5,0 % від суми кредиту.\nУ разі ненадання інформації, щодо фінансового та майнового стану, Банк має право нарахувати та стягнути, а Позичальник сплачує Банку штраф у розмірі 5,0 % від суми наданого кредиту. У разі невиконання умов щодо страхування життя та/або об’єкту застави процентна ставка збільшується на 10%.","Штраф – встановлюється в твердо визначеній грошовій сумі або у процентах від суми невиконаного або неналежного виконаного зобов’язання  і стягується одноразово. \nУ випадку надання завідомо недостовірної інформації, яка стосується умов цього Кредитного договору та/або процесу його виконання, Банк має право нарахувати та стягнути, а Позичальник сплачує Банку штраф у розмірі 5,0 % від суми кредиту.\nУ разі ненадання інформації, щодо фінансового та майнового стану, Банк має право нарахувати та стягнути, а Позичальник сплачує Банку штраф у розмірі 5,0 % від суми наданого кредиту. У разі невиконання умов щодо страхування життя та/або об’єкту застави процентна ставка збільшується на 10%."]

{"sheet":"Паспорт кредиту","index":4,"n_rows":90,"n_cols":2,"rows_kept":90,"cut":false,"hidden":true,"merged":[[89,0,89,1],[79,0,79,1],[84,0,84,1],[85,0,85,1],[38,0,39,0],[40,0,41,0],[46,0,47,0],[48,0,49,0],[88,0,88,1],[78,0,78,1],[59,0,59,1],[74,0,74,1],[60,0,60,1],[65,0,65,1],[67,0,67,1],[75,0,75,1],[1,0,1,1],[2,0,2,1],[3,0,3,1],[5,0,5,1],[6,0,7,0],[4,0,4,1],[8,1,9,1],[6,1,7,1],[11,1,13,1],[76,0,76,1],[36,0,37,0],[8,0,9,0],[11,0,13,0],[16,0,16,1],[22,0,22,1],[31,0,31,1],[58,0,58,1],[42,0,43,0],[17,1,21,1],[40,1,41,1]]}
[]
["Паспорт споживчого кредиту за продуктом \"Кредит фізичній особі на купівлю нерухомого майна на вторинному ринку\""]
["Інформація, яка надається споживачу до укладення договору про споживчий кредит "]
["(Стандартизована форма)"]
[{"$f":"'Додатки №1-2 \"Калькулятор\" '!P33","v":"Ануїтетна схема"}]
["1. Інформація та контактні дані кредитодавця"]
["Найменування кредитодавця та його структурного або відокремленого підрозділу, в якому поширюється інформація","АКЦІОНЕРНЕ ТОВАРИСТВО «БАНК\n «УКРАЇНСЬКИЙ КАПІТАЛ» "]
[]
["Місцезнаходження кредитодавця та адреса структурного або відокремленого підрозділу, в якому поширюється інформація","03117, м. Київ, проспект Берестейський, буд. 67 ;___________адреса Відділення"]
[]
["Ліцензія/Свідоцтво","Реєстраційний запис у Державному реєстрі банків № 138, дата внесення до реєстру 25.12.1992 р., запис у Державному реєстрі банків про право юридичної особи на здійснення банківської діяльності № 26"]
["Номер контактного телефону","0 800 210 804"]
[]
[]
["Адреса електронної пошти","office@buc.com.ua"]
["Адреса офіційного веб-сайту","www.ukrcapital.com.ua"]
["2. Інформація та контактні дані кредитного посередника*"]
["Найменування кредитного посередника","*Інформація не заповнюється у зв'язку з відсутністю кредитного посередника при наданні Банком кредиту під заставу нерухомості"]
["Місцезнаходження"]
["Номер контактного телефону"]
["Адреса електронної пошти"]
["Адреса офіційного веб-сайту*"]
["3. Основні умови кредитування з урахуванням побажань споживача"]
["Тип кредиту",{"$f":"'Додатки №1-2 \"Калькулятор\" '!F2","v":"кредит"}]
["Сума / ліміт кредиту, грн",{"$f":"'Додатки №1-2 \"Калькулятор\" '!E5","v":1000000}]
["Строк кредитування, міс.",{"$f":"'Додатки №1-2 \"Калькулятор\" '!E7","v":48}]
["Мета отримання кредиту",{"$f":"Продукты!B5","v":"Кредит надається на купівлю нерухомості на вторинному ринку"}]
["Спосіб та строк надання кредиту","Безготівковим шляхом на поточний рахунок Позичальника, відкритий в АТ «БАНК «УКРАЇНСЬКИЙ КАПІТАЛ», протягом 1 (одного) банківського дня від дати підписання договору "]
["Можливі види (форми) забезпечення кредиту","Іпотека нерухомого майна житлового та нежитлового призначення, у тому числі квартири, будинки, будівлі і споруди, земельні ділянки (з цільовим призначенням на будівництво та обслуговування житлового будинку та/або господарських будівель, споруд), яке придбавається Позичальником за рахунок кредитних коштів. \nВ іпотеку приймається нерухоме майно, яке розташовано в усіх регіонах України, окрім населених пунктів, на території яких органи державної влади України тимчасово не здійснюють свої повноваження та які розташовані на лінії зіткнення.\nТакож, в якості додаткового забезпечення може бути оформлено:\n- іпотека нерухомого майна, яка належить Позичальнику/Майновому поручителю на праві власності;\n- заставу транспортних засобів, майнові права по вкладу, розміщеному в Банку, що належать Позичальнику/ майновому Поручителю."]
["Необхідність проведення оцінки забезпечення кредиту (щорічно)","Так,\nоцінка проводиться за рахунок Позичальника"]
["Мінімальний розмір власного платежу (фінансової участі) споживача за умови отримання кредиту на придбання товару/роботи/послуги, %","від 30%"]
["4. Інформація щодо реальної річної процентної ставки та орієнтовної загальної вартості кредиту для споживача"]
["Процентна ставка, відсотків річних",{"$f":"'Додатки №1-2 \"Калькулятор\" '!E10","v":0.24}]
["Тип процентної ставки","Фіксована"]
["Порядок зміни змінюваної процентної ставки","-"]
["Платежі за додаткові та/або супутні послуги кредитодавця, обов’язкові для укладання договору, грн:","(зазначаються розмір платежу та база його розрахунку)"]
["1. Комісія за надання кредиту (одноразово від суми кредиту)",{"$f":"'Додатки №1-2 \"Калькулятор\" '!E12","v":0.01}]
[null,{"$f":"'Додатки №1-2 \"Калькулятор\" '!O12","v":10000}]
["2. Обслуговування кредитної заборгованості (щомісячно від початкової суми кредиту)",{"$f":"'Додатки №1-2 \"Калькулятор\" '!E13","v":0}]
[null,{"$f":"'Додатки №1-2 \"Калькулятор\" '!O13","v":0}]
["Платіжне обслуговування / Відкриття поточного  рахунку ","Відповідно до Тарифів Банку, розміщених на офіційному Інтернет сайті Банку https://ukrcapital.com.ua/uk/dokumenty/taryfni-pakety.html  (Тарифний пакет \"Cash\")"]
[]
["4. Інші послуги Банку (одноразово від суми кредиту)",{"$f":"'Додатки №1-2 \"Калькулятор\" '!E15","v":0}]
[null,{"$f":"'Додатки №1-2 \"Калькулятор\" '!O15","v":0}]
["5. Оцінка майна, грн",{"$f":"'Додатки №1-2 \"Калькулятор\" '!E21","v":3000}]
["6. Нотаріальні послуги, грн",{"$f":"'Додатки №1-2 \"Калькулятор\" '!E19","v":12500}]
["7. Страхування об’єкту застави (від розміру оціночної вартості майна)",{"$f":"'Додатки №1-2 \"Калькулятор\" '!E17","v":3.0000000000000001E-3}]
[null,{"$f":"'Додатки №1-2 \"Калькулятор\" '!O17","v":9000}]
["8. Страхування життя (від суми кредиту)",{"$f":"'Додатки №1-2 \"Калькулятор\" '!E16","v":0}]
[null,{"$f":"'Додатки №1-2 \"Калькулятор\" '!O16","v":0}]
["9. Інші послуги третіх осіб, всього",{"$f":"'Додатки №1-2 \"Калькулятор\" '!P40","v":30300}]
["9.1. Збір на обов'язкове державне пенсійне страхування",{"$f":" 'Додатки №1-2 \"Калькулятор\" '!E23","v":30000}]
["9.2. Адміністративні збори",{"$f":" 'Додатки №1-2 \"Калькулятор\" '!E24","v":300}]
["Застереження: витрати на такі послуги можуть змінюватися протягом строку дії договору про споживчий кредит","[якщо платежі за послуги кредитодавця, пов’язані з отриманням, обслуговуванням і поверненням кредиту, є періодичними]"]
["Платежі за послуги кредитного посередника, що підлягають сплаті споживачем, грн*",{"$f":"'Додатки №1-2 \"Калькулятор\" '!E18","v":0}]
["Загальні витрати за кредитом, грн",{"$f":"B57-B25","v":665688.10626877239}]
["Орієнтовна загальна вартість кредиту для споживача за весь строк користування кредитом (у т.ч. тіло кредиту, відсотки, комісії та інші платежі), грн.",{"$f":"'Додатки №1-2 \"Калькулятор\" '!S161","v":1665688.1062687724}]
["Реальна річна процентна ставка, відсотків річних",{"$f":"'Додатки №1-2 \"Калькулятор\" '!R161","v":0.33615334630012517}]
["Застереження: наведені обчислення реальної річної процентної ставки та орієнтовної загальної вартості кредиту для споживача є репрезентативними та базуються на обраних споживачем умовах кредитування, викладених вище, і на припущенні, що договір про споживчий кредит залишатиметься дійсним протягом погодженого строку та що кредитодавець і споживач виконають свої обов’язки на умовах та у строки, визначені в договорі.  "]
["Реальна річна процентна ставка обчислена на основі припущення, що процентна ставка та інші платежі за послуги кредитодавця та третіх осіб залишатимуться незмінними та застосовуватимуться протягом строку дії договору про споживчий кредит."]
["Застереження: використання інших способів надання кредиту та/або зміна інших вищезазначених умов кредитування можуть мати наслідком застосування іншої реальної річної процентної ставки та орієнтовної загальної вартості кредиту для споживача."]
["Платежі за додаткові та/або супутні послуги третіх осіб, обов’язкові для укладення договору/отримання кредиту, грн:","зазначаються розмір платежу та база його розрахунку"]
["послуги нотаріуса","Відповідно до тарифів Нотаріусів, орієнтовно:\n0,1% від вартості забезпечення, але не менше 12 500,00 грн."]
["послуги оцінювача","Відповідно до тарифів СОД, орієнтовно: 3000,00 грн."]
["послуги страховика","Відповідно до тарифів Страхової компанії, орієнтовно:  0,3% від оціночної вартості забезпечення"]
["5. Порядок повернення кредиту"]
["Кількість та розмір платежів, періодичність внесення","Надається у вигляді графіку платежів, у якому визначаються кількість, розмір платежів та періодичність їх внесення (за виключенням кредитування у вигляді кредитування рахунку, кредитної лінії, коли графік платежів може не надаватися)"]
["6. Додаткова інформація*"]
["Наслідки прострочення виконання та/або невиконання зобов’язань за договором про споживчий кредит:"]
["пеня","Пеня в розмірі подвійної облікової ставки Національного банку України, яка діяла в період, за який сплачується пеня, від суми платежу за кожний день прострочення - за порушення взятих на себе зобов'язань по своєчасному поверненню основної суми боргу та/або сплати процентів за користування кредитом та/або сплати суми комісійної винагороди, але не більше 15% від суми простроченого платежу. "]
["штрафи","1.За неподання та/або несвоєчасне подання Позичальником інформації про свій фінансовий стан, Позичальник зобов’язаний на вимогу Банку сплатити штраф у розмірі 1000,00 (одна тисяча) грн, за кожен факт такого невиконання та/або неналежного виконання.\n2. За порушення Позичальником  умов страхування іпотечного/заставного майна, в тому числі, несвоєчасне надання до Банку документів, що підтверджують сплату чергового страхового платежу, копії переоформленого договору/додаткової угоди про страхування на наступний термін, Позичальник зобов’язаний на вимогу Банку сплатити штраф у розмірі 1000,00 (одна тисяча) грн, за кожен факт такого невиконання та/або неналежного виконання. \n3. За ненадання або несвоєчасне надання до Банку Звіту про незалежну експертну оцінку, що проводиться акредитованим Банком СОД, при щорічній переоцінці заставленого майна, Позичальник зобов’язаний на вимогу Банку сплатити штраф у розмірі 5000,00 грн, за кожен факт такого невиконання та/або неналежного виконання.                                                               Сукупна сума неустойки (штраф, пеня) та інших платежів, що підлягають сплаті споживачем за порушення виконання його зобов'язань на підставі договору про споживчий кредит, не може перевищувати половини суми, одержаної споживачем за таким договором, і не може бути збільшена за домовленістю сторін."]
["Процентна ставка, яка застосовується\nпри невиконанні зобов'язання щодо повернення кредиту\n","Позичальник сплачує  проценти за неправомірне користування Кредитом – це плата, яка встановлюється Банком за порушення  зобов’язання з повернення Кредиту в кінцеві терміни, встановлені в Кредитному договорі. Розмір плати визначається Рішенням Кредитного комітету.\n       Згідно ч. 2 ст. 625 Цивільного кодексу України Позичальник, який прострочив виконання грошового зобов'язання, на вимогу кредитора зобов'язаний сплатити суму боргу з урахуванням встановленого індексу інфляції за весь час прострочення, а також три проценти річних від простроченої суми, якщо інший розмір процентів не встановлений договором або законом."]
["Плата за здійснення переказу коштів з інших банків в погашення кредитів, сплату відсотків та інших платежів за кредитами відповідно кредитних договорів","Згідно з тарифами відповідного банку"]
["Кредитодавець має право залучати до врегулювання простроченої заборгованості колекторську компанію.","Так"]
["Вимоги щодо взаємодії із споживачами при врегулюванні простроченої заборгованості (вимоги щодо етичної поведінки), встановлені статтею 25 Закону України \"Про споживче кредитування\"."]
["7. Інші важливі правові аспекти"]
["7.1. Споживач має право безкоштовно отримати копію проекту договору про споживчий кредит у письмовій чи електронній формі за своїм вибором. Це положення не застосовується у разі відмови кредитодавця від продовження процесу укладання договору зі споживачем."]
["7.2. Споживач має право відмовитися від договору про споживчий кредит протягом 14 календарних днів у порядку та на умовах, визначених Законом України \"Про споживче кредитування\".","Ні"]
["7.3.Споживач має право достроково повернути споживчий кредит без будь-якої додаткової плати, пов’язаної з достроковим поверненням. Договором про споживчий кредит може бути встановлений обов’язок повідомлення кредитодавця про намір дострокового повернення споживчого кредиту з оформленням відповідного документа."]
["7.4. Умови договору про споживчий кредит можуть відрізнятися від інформації, наведеної в цьому Паспорті споживчого кредиту, та будуть залежати від проведеної кредитодавцем оцінки кредитоспроможності споживача з урахуванням, зокрема, наданої ним інформації про майновий та сімейний стан, розмір доходів тощо."]
["Дата надання інформації:","Ця інформація зберігає чинність та є актуальною до:"]
[]
["Підпис кредитодавця:___________________","__________________________________________ПІБ"]
[]
["Підтверджую отримання та ознайомлення з інформацією про умови кредитування та орієнтовну загальну вартість кредиту, надані виходячи із обраних мною умов кредитування."]
["Підтверджую отримання мною всіх пояснень, необхідних для забезпечення можливості оцінити, чи адаптовано договір до моїх потреб та фінансової ситуації, зокрема шляхом роз’яснення наведеної інформації, в тому числі суттєвих характеристик запропонованих послуг та певних наслідків, які вони можуть мати для мене, в тому числі в разі невиконання мною зобов’язань за таким договором."]
[]
["Підпис споживача:______________________","___ ___________ ____Дата, ______________________________ПІБ"]
["Підтверджую отримання мною інформації про право кредитодавця залучати до врегулювання простроченої заборгованості колекторську компанію у разі невиконання мною зобов’язань за договором про споживчий кредит, про встановлені законодавством вимоги щодо взаємодії із споживачами при врегулюванні простроченої заборгованості (вимоги щодо етичної поведінки), про моє право на звернення до Національного банку України у разі недотримання таких вимог кредитодавцем та/або колекторською компанією, а також про моє право на звернення до суду з позовом про відшкодування шкоди, завданої у процесі врегулювання простроченої заборгованості."]
["Підтверджую повідомлення мене про передбачену статтею 182 Кримінального кодексу України відповідальність за незаконне збирання, зберігання, використання, поширення мною конфіденційної інформації про третіх осіб, персональні дані яких передані мною кредитодавцю."]

{"sheet":"Калькулятор Сайт","index":5,"n_rows":38,"n_cols":7,"rows_kept":38,"cut":false,"hidden":true,"merged":[[20,5,20,6]]}
[]
[null,"розраховується на підставі калькулятора"]
[null,"для самостійного заповнення на сайті клієнтом"]
[null,"фіксовані значення відповідно умов програми з наданого калькулятора та паспорту кредиту"]
[]
[null,"Калькулятор \"Кредит на купівлю  нерухомості \" Програма 1"]
[]
[null,null,null,null,"РОЗРАХУНОК КРЕДИТУ"]
["Вартість нерухомості:"]
[null,null,null,null,"Сума кредиту ",null,"(розрахункова)"]
["Строк   кредиту:",null,"(Випадаючий список) (12,24,….120) -до 10 років",null,"щомісячний платіж ***"]
[]
["Аванс % від ватрості нерухомості",null,"(Випадаючий список) (50,60,70)- мінімальний 37,5%",null,"реальна річна  % ставка",null,"стовб. 17 Усього"]
[]
["Схема погашения",null,"Ануїтетна / Класична",null,"Загальні витрати за кредитом, грн.",null,"сума стовб. 6-16"]
[]
["Процентна ставка по договору % річних",null,"Фіксована (24,0% )",null,"Загальна вартість кредиту****, грн. ",null,"стовб. 18 Усього"]
[]
["Одноразова комісія % від суми кредиту ",null,"Фіксована 1,5%"]
[]
["Щомісячна комісія % від початкової суми кредиту",null,"             Відсутня",null,null,"ОФОРМИТИ ЗАЯВКУ"]
[]
["Платежі за послуги третіх осіб",null,"Всього за весь строк кредиту (сума стовб.13, 14 та 15)"]
[]
["Послуги нотаріуса",null,"Одноразово (фіксована сума)* (усього стовб 13)"]
[]
["Послуги оцінювача",null,"Одноразово (фіксована сума)* (усього стовб 14)"]
[]
["Послуги страховика",null,"За весть строк кредиту ** (усього стовб 15)"]
[]
[]
["* До розрахунку прийнята середня  вартість нотаріальної послуги  та послуги оцінювача (виключно в разі оцінки домоволодіння із земельною ділянкою) у м. Києві "]
[]
["** До розрахунку прийняті середні страхові тарифи, що застосовуються при страхуванні нерухомого майна та життя позичальника від НВ в акредитованих компаніях - партнерах банку "]
[]
["*** однакова сума на весь строк кредиту для ануітетної схеми погашення та сума платежу  зі щомісячним зменшенням  для класичної схеми погашення"]
[]
["****до загальної вартості кредиту включені   платежі  за весь строк користування кредитом (у т.ч. тіло кредиту, відсотки, комісії та платежі за послуги третіх осіб )"]

{"sheet":"Лист2","index":6,"n_rows":0,"n_cols":0,"rows_kept":0,"cut":false,"hidden":true,"merged":[]}

{"sheet":"Лист3","index":7,"n_rows":0,"n_cols":0,"rows_kept":0,"cut":false,"hidden":true,"merged":[]}